Workbook

Sheet Instructions
A1: Manufacturer | B1: Tools
A2: File as | B2: T
A3: Product Code | B3: N
A4: CCTD Effective Date | B4: 2/1/22
A9: Enter your Company Name
B11: Click on "Index" to set the print area for the price list index
B12: Then you can send it to print
B15: Click on "Suggested Price List" to set the print area for Conestoga Tile's suggested price list.
B16: Then you can send it to print
B19: Enter your discount codes if you want a personal net cost sheet.
C21: Product
C22: Code | D22: Disc. %
C23: =+B3 -> N | D23: 0 | E23: This is a "NET" price list. 0% is the discount for this spreadsheet
B25: Click on "Your Cost" to set the print area for your personal cost report.
B26: Then you can send it to print
A29: Discount: | B29: To help establish your price list, enter the gross profit percent for each type of product.
B30: If you want to use Conestoga Tile's list price, leave them blank.
A32: Round Nickel: | B32: If you always want your price to round to the nearest nickel, enter "YES".
B33: If you enter "NO", it will NOT round to the nearest nickel.
A35: Ending Cents: | B35: If you always want your price to end with a certain cents, enter that cent value.
B36: If you leave it "blank" will NOT round to this cent value.
B38: GP Margin % for | C38: Group | D38: GP Margin | E38: Round Nickel | F38: add/subtract | G38: Ending Cents
B39: Barwalt - Saws/Cutters | C39: PR1 | E39: No | F39: 0
B40: Barwalt - All Other | C40: PR | E40: No | F40: 0
B41: DeWalt - Saws/Cutters | C41: DW1 | E41: No | F41: 0
B42: DeWalt - All Other | C42: DW | E42: No | F42: 0
B43: ETM - HP | C43: ET1 | E43: No | F43: 0
B44: ETM - All Other | C44: ET | E44: No | F44: 0
B45: Gundlach - All | C45: GU | E45: No | F45: 0
B46: Hydra - All | C46: HY | E46: No | F46: 0
B47: Imer - Saws/Cutters | C47: IE1 | E47: No | F47: 0
B48: Imer - All Other | C48: IE | E48: No | F48: 0
B49: IQ Tools - Saws/Cutters | C49: IQ1 | E49: No | F49: 0
B50: IQ Tools - All Other | C50: IQ | E50: No | F50: 0
B51: MK - Saws/Cutters | C51: MK1 | E51: No | F51: 0
B52: MK - All Other | C52: MK | E52: No | F52: 0
B53: Primo - Saws/Cutters | C53: PM1 | E53: No | F53: 0
B54: Primo - All Other | C54: PM | E54: No | F54: 0
B55: Progress Profiles - All | C55: PP | E55: No | F55: 0
B56: Sigma - Saws/Cutters | C56: RS1 | E56: No | F56: 0
B57: Sigma - All Other | C57: RS | E57: No | F57: 0
B58: Rubi - Saws/Cutters | C58: RU1 | E58: No | F58: 0
B59: Rubi - All Other | C59: RU | E59: No | F59: 0
B60: Schluter - Trowels | C60: SH | E60: No | F60: 0
B61: SuperiorBilt - Saws/Cutters | C61: SF1 | E61: No | F61: 0
B62: SuperiorBilt - All Other | C62: SF | E62: No | F62: 0
B63: Troxell - Saws/Cutters | C63: TR1 | E63: No | F63: 0
B64: Troxell - All Other | C64: TR | E64: No | F64: 0
B65: Extend-O-Drains | C65: XX | E65: No | F65: 0
A67: If you want to manually adjust your price list, hit "F5" and go to "Customer_Cost" to manually adjust pricing.
A68: You can enter a value in the column labeled "Adj." to change your price manually.
B70: Click on "Your Price Calculation" to set the print area for your personal cost calculation report.
B71: Then you can send it to print
B74: Click on "Your Price List" to set the print area for your personal price list.
B75: Then you can send it to print
G76: Yes
A78: If you have any questions on how to best use this spreadsheet, please feel free to contact
A79: Jim Vogel at (800) 422-6860, ext. 4201 or via e-mail at jimvogel@cctd.com

Sheet Index
F3: ="File '"&Instructions!B2&"' - "&Instructions!B1 -> File 'T' - Tools
A6: ="Price List Index - "&Instructions!B4 -> Price List Index - 2/1/22
A11: Page | C11: Product Type | G11: Page | I11: Product Type
A48: This price list is available electronically on an Excel spreadsheet. If you would like to obtain a copy, please email Conestoga Tile at service@cctd.com.
A50: The spreadsheet has many special features to assist you. Apply your discount to generate your net costs for your purchasing department. Apply your standard gross margin percentage or custom prices to generate your own custom price list for your showroom. Print out individual price list for each series that can be attached to the back of your sample boards for easy reference.

Sheet Price List
D1: Our Part # | F1: Description | O1: Mfg. | S1: =IF(Suggested="Yes",'Price List'!AA1,'Price List'!AG1) ->  | T1: EA | U1: =+Instructions!$B$3 -> N | W1: =+Instructions!$D$23 -> 0 | X1: =ROUND($AA1*(1-W1)+0.004999,2) ->  | Z1: new | AB1: =+W1 -> 0 | AC1: =+X1 ->  | AD1: =(AG1-AC1)/AG1 ->  | AF1: =+A1 -> 0 | AG1: =SUM(AJ1:AL1)+AE1 ->  | AJ1: =ROUND(AC1/(1-VLOOKUP(AF1,Group,2,FALSE)),2) ->  | AK1: =IF(VLOOKUP(AF1,Group,3,FALSE)="YES",VLOOKUP(ROUND(ROUND(AJ1,1)-AJ1,2),Round,2,FALSE)+VLOOKUP(AF1,Group,4,FALSE),0) ->  | AL1: =IF(VLOOKUP(AF1,Group,5,FALSE)="",0,ROUND(AJ1-0.04999,1)-AJ1+AM1) ->  | AM1: =IF(VLOOKUP(AF1,Group,5,FALSE)="","",VLOOKUP(AF1,Group,5,FALSE)) ->  | AO1: X
B2: Format | Q2: Stock | R2: a | S2: 1000 | T2: ABC | W2: 0.1 | X2: 1000 | Z2: ABC | AA2: 1000 | AB2: 0.1 | AC2: 1000 | AD2: 0.1 | AE2: 10 | AG2: 1000 | AO2: X
AO3: X
O4: ="File '"&Instructions!B2&"' - "&Instructions!B1 -> File 'T' - Tools | AG4: Retail Price Calculations | AO4: X
T5: =+Instructions!B4 -> 2/1/22 | W5: Cost | AE5: =TODAY() -> 2023-01-05 | AO5: X
C6: ="Product Code '"&Instructions!B3&"'" -> Product Code 'N' | AO6: X
AO7: X
AO8: X
C9: Part Number | F9: Description | O9: Manufacturer | Q9: Stock | R9: Note | S9: Net Price | T9: U/M | U9: Code | W9: Disc. | X9: Net | Z9: Chg | AA9: Net Price | AB9: Disc | AC9: Act. Cost | AD9: GP% | AE9: Adj. | AF9: Group | AG9: Price | AJ9: Calc Price | AK9: .05 Round | AL9: Cents | AM9: Round to | AO9: X
C10: Pricing is subject to change without notice. | AO10: X
C11: PRICING LISTED IS NET PRICING. TRADE DISCOUNTS DO NOT APPLY. | AO11: X
AO12: X
C13: Trowels | AO13: X
AO14: X
D15: U-Notched - Trowels | AO15: X
A16: PR | B16: Barwalt - All Other | D16: PR71073 | F16: 1/4 x 1/4 | H16: 71073 #72 | J16: - Soft Grip | O16: Barwalt | Q16: Stock | S16: =IF(Suggested="Yes",'Price List'!AA16,'Price List'!AG16) -> 10.85 | T16: EA | U16: =+Instructions!$B$3 -> N | W16: =+Instructions!$D$23 -> 0 | X16: =ROUND($AA16*(1-W16)+0.004999,2) -> 10.85 | Z16: YES | AA16: 10.85 | AB16: =+W16 -> 0 | AC16: =+X16 -> 10.85 | AD16: =(AG16-AC16)/AG16 -> 0 | AF16: =+A16 -> PR | AG16: =SUM(AJ16:AL16)+AE16 -> 10.85 | AJ16: =ROUND(AC16/(1-VLOOKUP(AF16,Group,2,FALSE)),2) -> 10.85 | AK16: =IF(VLOOKUP(AF16,Group,3,FALSE)="YES",VLOOKUP(ROUND(ROUND(AJ16,1)-AJ16,2),Round,2,FALSE)+VLOOKUP(AF16,Group,4,FALSE),0) -> 0 | AL16: =IF(VLOOKUP(AF16,Group,5,FALSE)="",0,ROUND(AJ16-0.04999,1)-AJ16+AM16) -> 0 | AM16: =IF(VLOOKUP(AF16,Group,5,FALSE)="","",VLOOKUP(AF16,Group,5,FALSE)) ->  | AO16: X
AO17: X
A18: TR | B18: Troxell - All Other | D18: TX14-66SS | F18: 3/8 x 1/4 | H18: 14-66SS | J18: - Soft Grip, Stainless Steel | O18: Troxell | Q18: Stock | R18: New | S18: =IF(Suggested="Yes",'Price List'!AA18,'Price List'!AG18) -> 13.15 | T18: EA | U18: =+Instructions!$B$3 -> N | W18: =+Instructions!$D$23 -> 0 | X18: =ROUND($AA18*(1-W18)+0.004999,2) -> 13.15 | Z18: new | AA18: 13.15 | AB18: =+W18 -> 0 | AC18: 13.15 | AD18: =(AG18-AC18)/AG18 -> 0 | AF18: =+A18 -> TR | AG18: =SUM(AJ18:AL18)+AE18 -> 13.15 | AJ18: =ROUND(AC18/(1-VLOOKUP(AF18,Group,2,FALSE)),2) -> 13.15 | AK18: =IF(VLOOKUP(AF18,Group,3,FALSE)="YES",VLOOKUP(ROUND(ROUND(AJ18,1)-AJ18,2),Round,2,FALSE)+VLOOKUP(AF18,Group,4,FALSE),0) -> 0 | AL18: =IF(VLOOKUP(AF18,Group,5,FALSE)="",0,ROUND(AJ18-0.04999,1)-AJ18+AM18) -> 0 | AM18: =IF(VLOOKUP(AF18,Group,5,FALSE)="","",VLOOKUP(AF18,Group,5,FALSE)) ->  | AO18: X
AO19: X
A20: PR | B20: Barwalt - All Other | D20: PR71080 | F20: 1/2 x 1/4 | H20: 71080 #78 | J20: - Soft Grip | O20: Barwalt | Q20: Stock | S20: =IF(Suggested="Yes",'Price List'!AA20,'Price List'!AG20) -> 10.85 | T20: EA | U20: =+Instructions!$B$3 -> N | W20: =+Instructions!$D$23 -> 0 | X20: =ROUND($AA20*(1-W20)+0.004999,2) -> 10.85 | Z20: YES | AA20: 10.85 | AB20: =+W20 -> 0 | AC20: =+X20 -> 10.85 | AD20: =(AG20-AC20)/AG20 -> 0 | AF20: =+A20 -> PR | AG20: =SUM(AJ20:AL20)+AE20 -> 10.85 | AJ20: =ROUND(AC20/(1-VLOOKUP(AF20,Group,2,FALSE)),2) -> 10.85 | AK20: =IF(VLOOKUP(AF20,Group,3,FALSE)="YES",VLOOKUP(ROUND(ROUND(AJ20,1)-AJ20,2),Round,2,FALSE)+VLOOKUP(AF20,Group,4,FALSE),0) -> 0 | AL20: =IF(VLOOKUP(AF20,Group,5,FALSE)="",0,ROUND(AJ20-0.04999,1)-AJ20+AM20) -> 0 | AM20: =IF(VLOOKUP(AF20,Group,5,FALSE)="","",VLOOKUP(AF20,Group,5,FALSE)) ->  | AO20: X
A21: PR | B21: Barwalt - All Other | D21: PR70962 | F21: 1/2 x 1/4 | H21: 70962 #78 | J21: - Soft Grip, Stainless Steel | O21: Barwalt | Q21: Stock | S21: =IF(Suggested="Yes",'Price List'!AA21,'Price List'!AG21) -> 12.35 | T21: EA | U21: =+Instructions!$B$3 -> N | W21: =+Instructions!$D$23 -> 0 | X21: =ROUND($AA21*(1-W21)+0.004999,2) -> 12.35 | Z21: YES | AA21: 12.35 | AB21: =+W21 -> 0 | AC21: =+X21 -> 12.35 | AD21: =(AG21-AC21)/AG21 -> 0 | AF21: =+A21 -> PR | AG21: =SUM(AJ21:AL21)+AE21 -> 12.35 | AJ21: =ROUND(AC21/(1-VLOOKUP(AF21,Group,2,FALSE)),2) -> 12.35 | AK21: =IF(VLOOKUP(AF21,Group,3,FALSE)="YES",VLOOKUP(ROUND(ROUND(AJ21,1)-AJ21,2),Round,2,FALSE)+VLOOKUP(AF21,Group,4,FALSE),0) -> 0 | AL21: =IF(VLOOKUP(AF21,Group,5,FALSE)="",0,ROUND(AJ21-0.04999,1)-AJ21+AM21) -> 0 | AM21: =IF(VLOOKUP(AF21,Group,5,FALSE)="","",VLOOKUP(AF21,Group,5,FALSE)) ->  | AO21: X
AO22: X
D23: Square Notched - Trowels | AO23: X
AO24: X
A25: PR | B25: Barwalt - All Other | D25: PR71138 | F25: 1/2 x 1/2 | H25: 71138 #58 | J25: - Soft Grip, Extra Long 16" | O25: Barwalt | Q25: Stock | S25: =IF(Suggested="Yes",'Price List'!AA25,'Price List'!AG25) -> 12.35 | T25: EA | U25: =+Instructions!$B$3 -> N | W25: =+Instructions!$D$23 -> 0 | X25: =ROUND($AA25*(1-W25)+0.004999,2) -> 12.35 | Z25: YES | AA25: 12.35 | AB25: =+W25 -> 0 | AC25: =+X25 -> 12.35 | AD25: =(AG25-AC25)/AG25 -> 0 | AF25: =+A25 -> PR | AG25: =SUM(AJ25:AL25)+AE25 -> 12.35 | AJ25: =ROUND(AC25/(1-VLOOKUP(AF25,Group,2,FALSE)),2) -> 12.35 | AK25: =IF(VLOOKUP(AF25,Group,3,FALSE)="YES",VLOOKUP(ROUND(ROUND(AJ25,1)-AJ25,2),Round,2,FALSE)+VLOOKUP(AF25,Group,4,FALSE),0) -> 0 | AL25: =IF(VLOOKUP(AF25,Group,5,FALSE)="",0,ROUND(AJ25-0.04999,1)-AJ25+AM25) -> 0 | AM25: =IF(VLOOKUP(AF25,Group,5,FALSE)="","",VLOOKUP(AF25,Group,5,FALSE)) ->  | AO25: X
D27: Euro-Notched - Trowels | AO27: X
A28: TR | B28: Troxell - All Other | D28: TX14-EUSS | F28: Euro-Notch | H28: 14-EUSS | J28: - Soft Grip, Stainless Steel | O28: Troxell | Q28: Stock | R28: New | S28: =IF(Suggested="Yes",'Price List'!AA28,'Price List'!AG28) -> 13.15 | T28: EA | U28: =+Instructions!$B$3 -> N | W28: =+Instructions!$D$23 -> 0 | X28: =ROUND($AA28*(1-W28)+0.004999,2) -> 13.15 | Z28: new | AA28: 13.15 | AB28: =+W28 -> 0 | AC28: =+X28 -> 13.15 | AD28: =(AG28-AC28)/AG28 -> 0 | AF28: =+A28 -> TR | AG28: =SUM(AJ28:AL28)+AE28 -> 13.15 | AJ28: =ROUND(AC28/(1-VLOOKUP(AF28,Group,2,FALSE)),2) -> 13.15 | AK28: =IF(VLOOKUP(AF28,Group,3,FALSE)="YES",VLOOKUP(ROUND(ROUND(AJ28,1)-AJ28,2),Round,2,FALSE)+VLOOKUP(AF28,Group,4,FALSE),0) -> 0 | AL28: =IF(VLOOKUP(AF28,Group,5,FALSE)="",0,ROUND(AJ28-0.04999,1)-AJ28+AM28) -> 0 | AM28: =IF(VLOOKUP(AF28,Group,5,FALSE)="","",VLOOKUP(AF28,Group,5,FALSE)) ->  | AO28: X
AO29: X
D30: Schluter Sized - Trowels | AO30: X
A31: SH | B31: Schluter - Trowels | D31: SHTRLKER6 | F31: 1/8 x 1/8 | H31: TRL-KER | J31: Schluter Kerdi trowel | O31: Schluter | Q31: n/s | S31: =IF(Suggested="Yes",'Price List'!AA31,'Price List'!AG31) -> 20.55 | T31: EA | U31: =+Instructions!$B$3 -> N | W31: =+Instructions!$D$23 -> 0 | X31: =ROUND($AA31*(1-W31)+0.004999,2) -> 20.55 | Z31: YES | AA31: 20.55 | AB31: =+W31 -> 0 | AC31: =+X31 -> 20.55 | AD31: =(AG31-AC31)/AG31 -> 0 | AF31: =+A31 -> SH | AG31: =SUM(AJ31:AL31)+AE31 -> 20.55 | AJ31: =ROUND(AC31/(1-VLOOKUP(AF31,Group,2,FALSE)),2) -> 20.55 | AK31: =IF(VLOOKUP(AF31,Group,3,FALSE)="YES",VLOOKUP(ROUND(ROUND(AJ31,1)-AJ31,2),Round,2,FALSE)+VLOOKUP(AF31,Group,4,FALSE),0) -> 0 | AL31: =IF(VLOOKUP(AF31,Group,5,FALSE)="",0,ROUND(AJ31-0.04999,1)-AJ31+AM31) -> 0 | AM31: =IF(VLOOKUP(AF31,Group,5,FALSE)="","",VLOOKUP(AF31,Group,5,FALSE)) ->  | AO31: X
A32: TR | B32: Troxell - All Other | D32: TX1410SS | F32: 1/8 x 1/8 | H32: 14-10SS | J32: Kerdi-Size Trowel, Soft Grip, Stainless | O32: Troxell | Q32: Stock | S32: =IF(Suggested="Yes",'Price List'!AA32,'Price List'!AG32) -> 13.15 | T32: EA | U32: =+Instructions!$B$3 -> N | W32: =+Instructions!$D$23 -> 0 | X32: =ROUND($AA32*(1-W32)+0.004999,2) -> 13.15 | Z32: YES | AA32: 13.15 | AB32: =+W32 -> 0 | AC32: =+X32 -> 13.15 | AD32: =(AG32-AC32)/AG32 -> 0 | AF32: =+A32 -> TR | AG32: =SUM(AJ32:AL32)+AE32 -> 13.15 | AJ32: =ROUND(AC32/(1-VLOOKUP(AF32,Group,2,FALSE)),2) -> 13.15 | AK32: =IF(VLOOKUP(AF32,Group,3,FALSE)="YES",VLOOKUP(ROUND(ROUND(AJ32,1)-AJ32,2),Round,2,FALSE)+VLOOKUP(AF32,Group,4,FALSE),0) -> 0 | AL32: =IF(VLOOKUP(AF32,Group,5,FALSE)="",0,ROUND(AJ32-0.04999,1)-AJ32+AM32) -> 0 | AM32: =IF(VLOOKUP(AF32,Group,5,FALSE)="","",VLOOKUP(AF32,Group,5,FALSE)) ->  | AO32: X
A34: SH | B34: Schluter - Trowels | D34: SHTRLDIT6 | F34: 11/64 x 11/64 | H34: TRL-DIT | J34: Schluter Ditra trowel | O34: Schluter | Q34: n/s | S34: =IF(Suggested="Yes",'Price List'!AA34,'Price List'!AG34) -> 20.55 | T34: EA | U34: =+Instructions!$B$3 -> N | W34: =+Instructions!$D$23 -> 0 | X34: =ROUND($AA34*(1-W34)+0.004999,2) -> 20.55 | Z34: YES | AA34: 20.55 | AB34: =+W34 -> 0 | AC34: =+X34 -> 20.55 | AD34: =(AG34-AC34)/AG34 -> 0 | AF34: =+A34 -> SH | AG34: =SUM(AJ34:AL34)+AE34 -> 20.55 | AJ34: =ROUND(AC34/(1-VLOOKUP(AF34,Group,2,FALSE)),2) -> 20.55 | AK34: =IF(VLOOKUP(AF34,Group,3,FALSE)="YES",VLOOKUP(ROUND(ROUND(AJ34,1)-AJ34,2),Round,2,FALSE)+VLOOKUP(AF34,Group,4,FALSE),0) -> 0 | AL34: =IF(VLOOKUP(AF34,Group,5,FALSE)="",0,ROUND(AJ34-0.04999,1)-AJ34+AM34) -> 0 | AM34: =IF(VLOOKUP(AF34,Group,5,FALSE)="","",VLOOKUP(AF34,Group,5,FALSE)) ->  | AO34: X
A35: TR | B35: Troxell - All Other | D35: TX1420SS | F35: 11/64 x 11/64 | H35: 14-20SS | J35: Ditra-Size Trowel, Soft Grip, Stainless | O35: Troxell | Q35: Stock | S35: =IF(Suggested="Yes",'Price List'!AA35,'Price List'!AG35) -> 13.15 | T35: EA | U35: =+Instructions!$B$3 -> N | W35: =+Instructions!$D$23 -> 0 | X35: =ROUND($AA35*(1-W35)+0.004999,2) -> 13.15 | Z35: YES | AA35: 13.15 | AB35: =+W35 -> 0 | AC35: =+X35 -> 13.15 | AD35: =(AG35-AC35)/AG35 -> 0 | AF35: =+A35 -> TR | AG35: =SUM(AJ35:AL35)+AE35 -> 13.15 | AJ35: =ROUND(AC35/(1-VLOOKUP(AF35,Group,2,FALSE)),2) -> 13.15 | AK35: =IF(VLOOKUP(AF35,Group,3,FALSE)="YES",VLOOKUP(ROUND(ROUND(AJ35,1)-AJ35,2),Round,2,FALSE)+VLOOKUP(AF35,Group,4,FALSE),0) -> 0 | AL35: =IF(VLOOKUP(AF35,Group,5,FALSE)="",0,ROUND(AJ35-0.04999,1)-AJ35+AM35) -> 0 | AM35: =IF(VLOOKUP(AF35,Group,5,FALSE)="","",VLOOKUP(AF35,Group,5,FALSE)) ->  | AO35: X
D37: V-Notched - Trowels | AO37: X
A38: TR | B38: Troxell - All Other | D38: TX14-44SS | F38: 3/16 x 1/4 | H38: 14-44SS | J38: - Soft Grip, Stainless Steel | O38: Troxell | Q38: Stock | R38: New | S38: =IF(Suggested="Yes",'Price List'!AA38,'Price List'!AG38) -> 13.15 | T38: EA | U38: =+Instructions!$B$3 -> N | W38: =+Instructions!$D$23 -> 0 | X38: =ROUND($AA38*(1-W38)+0.004999,2) -> 13.15 | Z38: new | AA38: 13.15 | AB38: =+W38 -> 0 | AC38: =+X38 -> 13.15 | AD38: =(AG38-AC38)/AG38 -> 0 | AF38: =+A38 -> TR | AG38: =SUM(AJ38:AL38)+AE38 -> 13.15 | AJ38: =ROUND(AC38/(1-VLOOKUP(AF38,Group,2,FALSE)),2) -> 13.15 | AK38: =IF(VLOOKUP(AF38,Group,3,FALSE)="YES",VLOOKUP(ROUND(ROUND(AJ38,1)-AJ38,2),Round,2,FALSE)+VLOOKUP(AF38,Group,4,FALSE),0) -> 0 | AL38: =IF(VLOOKUP(AF38,Group,5,FALSE)="",0,ROUND(AJ38-0.04999,1)-AJ38+AM38) -> 0 | AM38: =IF(VLOOKUP(AF38,Group,5,FALSE)="","",VLOOKUP(AF38,Group,5,FALSE)) ->  | AO38: X
AO39: X
A40: TR | B40: Troxell - All Other | D40: TX14-33SS | F40: 1/4 x 5/16 | H40: 14-33SS | J40: - Soft Grip, Stainless Steel | O40: Troxell | Q40: Stock | R40: New | S40: =IF(Suggested="Yes",'Price List'!AA40,'Price List'!AG40) -> 13.15 | T40: EA | U40: =+Instructions!$B$3 -> N | W40: =+Instructions!$D$23 -> 0 | X40: =ROUND($AA40*(1-W40)+0.004999,2) -> 13.15 | Z40: new | AA40: 13.15 | AB40: =+W40 -> 0 | AC40: =+X40 -> 13.15 | AD40: =(AG40-AC40)/AG40 -> 0 | AF40: =+A40 -> TR | AG40: =SUM(AJ40:AL40)+AE40 -> 13.15 | AJ40: =ROUND(AC40/(1-VLOOKUP(AF40,Group,2,FALSE)),2) -> 13.15 | AK40: =IF(VLOOKUP(AF40,Group,3,FALSE)="YES",VLOOKUP(ROUND(ROUND(AJ40,1)-AJ40,2),Round,2,FALSE)+VLOOKUP(AF40,Group,4,FALSE),0) -> 0 | AL40: =IF(VLOOKUP(AF40,Group,5,FALSE)="",0,ROUND(AJ40-0.04999,1)-AJ40+AM40) -> 0 | AM40: =IF(VLOOKUP(AF40,Group,5,FALSE)="","",VLOOKUP(AF40,Group,5,FALSE)) ->  | AO40: X
AO41: X
E42: Note: | F42: 3/16" x 1/4" is recommended for installation of Schluter Kerdi Matting. | AO42: X
F43: 1/4"" x 5/16" is recommended for installation of Schluter Ditra Matting. | AO43: X
AO44: X
D45: Margin Trowels - Notched | AO45: X
A46: PR | B46: Barwalt - All Other | D46: PR70921 | F46: 5" x 2" | H46: 70921 | J46: 1/4" Square Notched | O46: Barwalt | Q46: Stock | S46: =IF(Suggested="Yes",'Price List'!AA46,'Price List'!AG46) -> 2.3 | T46: EA | U46: =+Instructions!$B$3 -> N | W46: =+Instructions!$D$23 -> 0 | X46: =ROUND($AA46*(1-W46)+0.004999,2) -> 2.3 | Z46: YES | AA46: 2.3 | AB46: =+W46 -> 0 | AC46: =+X46 -> 2.3 | AD46: =(AG46-AC46)/AG46 -> 0 | AF46: =+A46 -> PR | AG46: =SUM(AJ46:AL46)+AE46 -> 2.3 | AJ46: =ROUND(AC46/(1-VLOOKUP(AF46,Group,2,FALSE)),2) -> 2.3 | AK46: =IF(VLOOKUP(AF46,Group,3,FALSE)="YES",VLOOKUP(ROUND(ROUND(AJ46,1)-AJ46,2),Round,2,FALSE)+VLOOKUP(AF46,Group,4,FALSE),0) -> 0 | AL46: =IF(VLOOKUP(AF46,Group,5,FALSE)="",0,ROUND(AJ46-0.04999,1)-AJ46+AM46) -> 0 | AM46: =IF(VLOOKUP(AF46,Group,5,FALSE)="","",VLOOKUP(AF46,Group,5,FALSE)) ->  | AO46: X
AO47: X
D48: Margin Trowels | AO48: X
A49: TR | B49: Troxell - All Other | D49: TX15-522 | F49: 5" x 2" | H49: 15-522 | J49: - Soft Grip, Stainless Steel | O49: Troxell | Q49: Stock | R49: New | S49: =IF(Suggested="Yes",'Price List'!AA49,'Price List'!AG49) -> 7.35 | T49: EA | U49: =+Instructions!$B$3 -> N | W49: =+Instructions!$D$23 -> 0 | X49: =ROUND($AA49*(1-W49)+0.004999,2) -> 7.35 | Z49: new | AA49: 7.35 | AB49: =+W49 -> 0 | AC49: 7.35 | AD49: =(AG49-AC49)/AG49 -> 0 | AF49: =+A49 -> TR | AG49: =SUM(AJ49:AL49)+AE49 -> 7.35 | AJ49: =ROUND(AC49/(1-VLOOKUP(AF49,Group,2,FALSE)),2) -> 7.35 | AK49: =IF(VLOOKUP(AF49,Group,3,FALSE)="YES",VLOOKUP(ROUND(ROUND(AJ49,1)-AJ49,2),Round,2,FALSE)+VLOOKUP(AF49,Group,4,FALSE),0) -> 0 | AL49: =IF(VLOOKUP(AF49,Group,5,FALSE)="",0,ROUND(AJ49-0.04999,1)-AJ49+AM49) -> 0 | AM49: =IF(VLOOKUP(AF49,Group,5,FALSE)="","",VLOOKUP(AF49,Group,5,FALSE)) ->  | AO49: X
A50: TR | B50: Troxell - All Other | D50: TX15-582 | F50: 8" x 2" | H50: 15-582 | J50: - Soft Grip, Stainless Steel | O50: Troxell | Q50: Stock | R50: New | S50: =IF(Suggested="Yes",'Price List'!AA50,'Price List'!AG50) -> 8.45 | T50: EA | U50: =+Instructions!$B$3 -> N | W50: =+Instructions!$D$23 -> 0 | X50: =ROUND($AA50*(1-W50)+0.004999,2) -> 8.45 | Z50: new | AA50: 8.45 | AB50: 0 | AC50: 8.45 | AD50: =(AG50-AC50)/AG50 -> 0 | AF50: =+A50 -> TR | AG50: =SUM(AJ50:AL50)+AE50 -> 8.45 | AJ50: =ROUND(AC50/(1-VLOOKUP(AF50,Group,2,FALSE)),2) -> 8.45 | AK50: =IF(VLOOKUP(AF50,Group,3,FALSE)="YES",VLOOKUP(ROUND(ROUND(AJ50,1)-AJ50,2),Round,2,FALSE)+VLOOKUP(AF50,Group,4,FALSE),0) -> 0 | AL50: =IF(VLOOKUP(AF50,Group,5,FALSE)="",0,ROUND(AJ50-0.04999,1)-AJ50+AM50) -> 0 | AM50: =IF(VLOOKUP(AF50,Group,5,FALSE)="","",VLOOKUP(AF50,Group,5,FALSE)) ->  | AO50: X
AO51: X
C52: Floats | AO52: X
AO53: X
D54: Regular Floats | AO54: X
AO55: X
A56: PR | B56: Barwalt - All Other | D56: PR71158 | F56: 4" x 9" | H56: 71158 | J56: - Lightweight w/ Cushion Handle | O56: Barwalt | Q56: Stock | S56: =IF(Suggested="Yes",'Price List'!AA56,'Price List'!AG56) -> 9.65 | T56: EA | U56: =+Instructions!$B$3 -> N | W56: =+Instructions!$D$23 -> 0 | X56: =ROUND($AA56*(1-W56)+0.004999,2) -> 9.65 | Z56: YES | AA56: 9.65 | AB56: =+W56 -> 0 | AC56: 9.65 | AD56: =(AG56-AC56)/AG56 -> 0 | AF56: =+A56 -> PR | AG56: =SUM(AJ56:AL56)+AE56 -> 9.65 | AJ56: =ROUND(AC56/(1-VLOOKUP(AF56,Group,2,FALSE)),2) -> 9.65 | AK56: =IF(VLOOKUP(AF56,Group,3,FALSE)="YES",VLOOKUP(ROUND(ROUND(AJ56,1)-AJ56,2),Round,2,FALSE)+VLOOKUP(AF56,Group,4,FALSE),0) -> 0 | AL56: =IF(VLOOKUP(AF56,Group,5,FALSE)="",0,ROUND(AJ56-0.04999,1)-AJ56+AM56) -> 0 | AM56: =IF(VLOOKUP(AF56,Group,5,FALSE)="","",VLOOKUP(AF56,Group,5,FALSE)) ->  | AO56: X
A57: PR | B57: Barwalt - All Other | D57: PR71175 | F57: 4" x 9" | H57: 71175 | J57: - Gum Rubber w/ Metal Backing, Soft Grip | O57: Barwalt | Q57: Stock | S57: =IF(Suggested="Yes",'Price List'!AA57,'Price List'!AG57) -> 9.95 | T57: EA | U57: =+Instructions!$B$3 -> N | W57: =+Instructions!$D$23 -> 0 | X57: 9.95 | Z57: YES | AA57: 9.95 | AB57: 0 | AC57: 9.95 | AD57: 0 | AF57: PR | AG57: 9.95 | AJ57: 9.95 | AK57: 0 | AL57: 0 | AO57: X
A58: TR | B58: Troxell - All Other | D58: TX0943P | F58: 4" x 9" | H58: 09-43P | J58: Super-Grip PROFLEX Gum Float | O58: Troxell | Q58: Stock | S58: =IF(Suggested="Yes",'Price List'!AA58,'Price List'!AG58) -> 13 | T58: EA | U58: =+Instructions!$B$3 -> N | W58: =+Instructions!$D$23 -> 0 | X58: 13 | Z58: YES | AA58: 13 | AB58: 0 | AC58: 13 | AD58: 0 | AF58: TR | AG58: 13 | AJ58: 13 | AK58: 0 | AL58: 0 | AO58: X
A59: PR | B59: Barwalt - All Other | D59: PRUWF1 | F59: 3.5" x 10" | H59: 81319 UWF-1B | J59: - Ultralight w/ Hollow Handle (Green) | O59: Barwalt | Q59: Stock | S59: =IF(Suggested="Yes",'Price List'!AA59,'Price List'!AG59) -> 13.8 | T59: EA | U59: =+Instructions!$B$3 -> N | W59: =+Instructions!$D$23 -> 0 | X59: 13.8 | Z59: YES | AA59: 13.8 | AB59: 0 | AC59: 13.8 | AD59: 0 | AF59: PR | AG59: 13.8 | AJ59: 13.8 | AK59: 0 | AL59: 0 | AO59: X
A60: PR | B60: Barwalt - All Other | D60: PR71185 | F60: 4" x 10-1/2" | H60: 71185 | J60: - Ultrasoft Float | O60: Barwalt | Q60: Stock | S60: =IF(Suggested="Yes",'Price List'!AA60,'Price List'!AG60) -> 12.9 | T60: EA | U60: =+Instructions!$B$3 -> N | W60: =+Instructions!$D$23 -> 0 | X60: 12.9 | Z60: YES | AA60: 12.9 | AB60: 0 | AC60: 12.9 | AD60: 0 | AF60: PR | AG60: 12.9 | AJ60: 12.9 | AK60: 0 | AL60: 0 | AO60: X
A61: TR | B61: Troxell - All Other | D61: TX0943PXL | F61: 4" x 12" | H61: 09-43PXL | J61: Super-Grip PROFLEX Gum Float | O61: Troxell | Q61: Stock | S61: =IF(Suggested="Yes",'Price List'!AA61,'Price List'!AG61) -> 16.05 | T61: EA | U61: =+Instructions!$B$3 -> N | W61: =+Instructions!$D$23 -> 0 | X61: 16.05 | Z61: YES | AA61: 16.05 | AB61: 0 | AC61: 16.05 | AD61: 0 | AF61: TR | AG61: 16.05 | AJ61: 16.05 | AK61: 0 | AL61: 0 | AO61: X
AO62: X
D63: Offset Floats | AO63: X
A64: PR | B64: Barwalt - All Other | D64: PR71178 | F64: 3" x 12" | H64: 71178 | J64: - Gum Rubber w/ Metal Backing, Soft Grip | O64: Barwalt | S64: =IF(Suggested="Yes",'Price List'!AA64,'Price List'!AG64) -> 9.95 | T64: EA | U64: =+Instructions!$B$3 -> N | W64: =+Instructions!$D$23 -> 0 | X64: =ROUND($AA64*(1-W64)+0.004999,2) -> 9.95 | Z64: YES | AA64: 9.95 | AB64: =+W64 -> 0 | AC64: =+X64 -> 9.95 | AD64: =(AG64-AC64)/AG64 -> 0 | AF64: =+A64 -> PR | AG64: =SUM(AJ64:AL64)+AE64 -> 9.95 | AJ64: =ROUND(AC64/(1-VLOOKUP(AF64,Group,2,FALSE)),2) -> 9.95 | AK64: =IF(VLOOKUP(AF64,Group,3,FALSE)="YES",VLOOKUP(ROUND(ROUND(AJ64,1)-AJ64,2),Round,2,FALSE)+VLOOKUP(AF64,Group,4,FALSE),0) -> 0 | AL64: =IF(VLOOKUP(AF64,Group,5,FALSE)="",0,ROUND(AJ64-0.04999,1)-AJ64+AM64) -> 0 | AM64: =IF(VLOOKUP(AF64,Group,5,FALSE)="","",VLOOKUP(AF64,Group,5,FALSE)) ->  | AO64: X
AO65: X
D66: Epoxy Floats | AO66: X
A67: TR | B67: Troxell - All Other | D67: TX09KF | F67: 4" x 9" | H67: 09-KF | J67: Super-Grip PROFLEX Yellow Float | O67: Troxell | Q67: Stock | S67: =IF(Suggested="Yes",'Price List'!AA67,'Price List'!AG67) -> 15.6 | T67: EA | U67: =+Instructions!$B$3 -> N | W67: =+Instructions!$D$23 -> 0 | X67: =ROUND($AA67*(1-W67)+0.004999,2) -> 15.6 | Z67: YES | AA67: 15.6 | AB67: =+W67 -> 0 | AC67: =+X67 -> 15.6 | AD67: =(AG67-AC67)/AG67 -> 0 | AF67: =+A67 -> TR | AG67: =SUM(AJ67:AL67)+AE67 -> 15.6 | AJ67: =ROUND(AC67/(1-VLOOKUP(AF67,Group,2,FALSE)),2) -> 15.6 | AK67: =IF(VLOOKUP(AF67,Group,3,FALSE)="YES",VLOOKUP(ROUND(ROUND(AJ67,1)-AJ67,2),Round,2,FALSE)+VLOOKUP(AF67,Group,4,FALSE),0) -> 0 | AL67: =IF(VLOOKUP(AF67,Group,5,FALSE)="",0,ROUND(AJ67-0.04999,1)-AJ67+AM67) -> 0 | AM67: =IF(VLOOKUP(AF67,Group,5,FALSE)="","",VLOOKUP(AF67,Group,5,FALSE)) ->  | AO67: X
A68: PR | B68: Barwalt - All Other | D68: PRUFF2000 | H68: 81400 UFF-2000 | J68: - Ultralight w/ Solid Handle | O68: Barwalt | Q68: Stock | S68: =IF(Suggested="Yes",'Price List'!AA68,'Price List'!AG68) -> 16.45 | T68: EA | U68: =+Instructions!$B$3 -> N | W68: =+Instructions!$D$23 -> 0 | X68: =ROUND($AA68*(1-W68)+0.004999,2) -> 16.45 | Z68: YES | AA68: 16.45 | AB68: =+W68 -> 0 | AC68: =+X68 -> 16.45 | AD68: =(AG68-AC68)/AG68 -> 0 | AF68: =+A68 -> PR | AG68: =SUM(AJ68:AL68)+AE68 -> 16.45 | AJ68: =ROUND(AC68/(1-VLOOKUP(AF68,Group,2,FALSE)),2) -> 16.45 | AK68: =IF(VLOOKUP(AF68,Group,3,FALSE)="YES",VLOOKUP(ROUND(ROUND(AJ68,1)-AJ68,2),Round,2,FALSE)+VLOOKUP(AF68,Group,4,FALSE),0) -> 0 | AL68: =IF(VLOOKUP(AF68,Group,5,FALSE)="",0,ROUND(AJ68-0.04999,1)-AJ68+AM68) -> 0 | AM68: =IF(VLOOKUP(AF68,Group,5,FALSE)="","",VLOOKUP(AF68,Group,5,FALSE)) ->  | AO68: X
AO69: X
D70: Margin Floats | AO70: X
A71: PR | B71: Barwalt - All Other | D71: PR70922 | F71: 2" x 6" | H71: 70922 | J71: - Wood Handle | O71: Barwalt | S71: =IF(Suggested="Yes",'Price List'!AA71,'Price List'!AG71) -> 5.4 | T71: EA | U71: =+Instructions!$B$3 -> N | W71: =+Instructions!$D$23 -> 0 | X71: =ROUND($AA71*(1-W71)+0.004999,2) -> 5.4 | Z71: YES | AA71: 5.4 | AB71: =+W71 -> 0 | AC71: =+X71 -> 5.4 | AD71: =(AG71-AC71)/AG71 -> 0 | AF71: =+A71 -> PR | AG71: =SUM(AJ71:AL71)+AE71 -> 5.4 | AJ71: =ROUND(AC71/(1-VLOOKUP(AF71,Group,2,FALSE)),2) -> 5.4 | AK71: =IF(VLOOKUP(AF71,Group,3,FALSE)="YES",VLOOKUP(ROUND(ROUND(AJ71,1)-AJ71,2),Round,2,FALSE)+VLOOKUP(AF71,Group,4,FALSE),0) -> 0 | AL71: =IF(VLOOKUP(AF71,Group,5,FALSE)="",0,ROUND(AJ71-0.04999,1)-AJ71+AM71) -> 0 | AM71: =IF(VLOOKUP(AF71,Group,5,FALSE)="","",VLOOKUP(AF71,Group,5,FALSE)) ->  | AO71: X
A72: TR | B72: Troxell - All Other | D72: TX09MTF | F72: 2" x 6" | H72: 09-MTF | J72: - Soft Grip, Stainless Steel | O72: Troxell | Q72: n/s | R72: New | S72: =IF(Suggested="Yes",'Price List'!AA72,'Price List'!AG72) -> 9.3 | T72: EA | U72: =+Instructions!$B$3 -> N | W72: =+Instructions!$D$23 -> 0 | X72: =ROUND($AA72*(1-W72)+0.004999,2) -> 9.3 | Z72: new | AA72: 9.3 | AB72: =+W72 -> 0 | AC72: =+X72 -> 9.3 | AD72: =(AG72-AC72)/AG72 -> 0 | AF72: =+A72 -> TR | AG72: =SUM(AJ72:AL72)+AE72 -> 9.3 | AJ72: =ROUND(AC72/(1-VLOOKUP(AF72,Group,2,FALSE)),2) -> 9.3 | AK72: =IF(VLOOKUP(AF72,Group,3,FALSE)="YES",VLOOKUP(ROUND(ROUND(AJ72,1)-AJ72,2),Round,2,FALSE)+VLOOKUP(AF72,Group,4,FALSE),0) -> 0 | AL72: =IF(VLOOKUP(AF72,Group,5,FALSE)="",0,ROUND(AJ72-0.04999,1)-AJ72+AM72) -> 0 | AM72: =IF(VLOOKUP(AF72,Group,5,FALSE)="","",VLOOKUP(AF72,Group,5,FALSE)) ->  | AO72: X
AO73: X
C74: Grouting Clean Up Systems / Sponges | AO74: X
AO75: X
D76: Ultra Grouting System | AO76: X
A77: PR | B77: Barwalt - All Other | D77: PR81584 | F77: 81584 Ultra Grouting System | O77: Barwalt | Q77: Stock | S77: =IF(Suggested="Yes",'Price List'!AA77,'Price List'!AG77) -> 113.75 | T77: EA | U77: =+Instructions!$B$3 -> N | W77: =+Instructions!$D$23 -> 0 | X77: =ROUND($AA77*(1-W77)+0.004999,2) -> 113.75 | Z77: YES | AA77: 113.75 | AB77: =+W77 -> 0 | AC77: =+X77 -> 113.75 | AD77: =(AG77-AC77)/AG77 -> 0 | AF77: =+A77 -> PR | AG77: =SUM(AJ77:AL77)+AE77 -> 113.75 | AJ77: =ROUND(AC77/(1-VLOOKUP(AF77,Group,2,FALSE)),2) -> 113.75 | AK77: =IF(VLOOKUP(AF77,Group,3,FALSE)="YES",VLOOKUP(ROUND(ROUND(AJ77,1)-AJ77,2),Round,2,FALSE)+VLOOKUP(AF77,Group,4,FALSE),0) -> 0 | AL77: =IF(VLOOKUP(AF77,Group,5,FALSE)="",0,ROUND(AJ77-0.04999,1)-AJ77+AM77) -> 0 | AM77: =IF(VLOOKUP(AF77,Group,5,FALSE)="","",VLOOKUP(AF77,Group,5,FALSE)) ->  | AO77: X
A78: PR | B78: Barwalt - All Other | D78: PR81510 | G78: 81510 Wall Sponge Holder | O78: Barwalt | Q78: Stock | S78: =IF(Suggested="Yes",'Price List'!AA78,'Price List'!AG78) -> 16.55 | T78: EA | U78: =+Instructions!$B$3 -> N | W78: =+Instructions!$D$23 -> 0 | X78: 16.55 | Z78: YES | AA78: 16.55 | AB78: 0 | AC78: 16.55 | AD78: 0 | AF78: PR | AG78: 16.55 | AJ78: 16.55 | AK78: 0 | AL78: 0 | AO78: X
A79: PR | B79: Barwalt - All Other | D79: PR81511 | G79: 81511 Wall Replacement Sponge | O79: Barwalt | Q79: Stock | S79: =IF(Suggested="Yes",'Price List'!AA79,'Price List'!AG79) -> 5.45 | T79: EA | U79: =+Instructions!$B$3 -> N | W79: =+Instructions!$D$23 -> 0 | X79: 5.45 | Z79: YES | AA79: 5.45 | AB79: 0 | AC79: 5.45 | AD79: 0 | AF79: PR | AG79: 5.45 | AJ79: 5.45 | AK79: 0 | AL79: 0 | AO79: X
A80: PR | B80: Barwalt - All Other | D80: PR81520 | G80: 81520 Floor Sponge Holder | O80: Barwalt | Q80: Stock | S80: =IF(Suggested="Yes",'Price List'!AA80,'Price List'!AG80) -> 16.55 | T80: EA | U80: =+Instructions!$B$3 -> N | W80: =+Instructions!$D$23 -> 0 | X80: 16.55 | Z80: YES | AA80: 16.55 | AB80: 0 | AC80: 16.55 | AD80: 0 | AF80: PR | AG80: 16.55 | AJ80: 16.55 | AK80: 0 | AL80: 0 | AO80: X
A81: PR | B81: Barwalt - All Other | D81: PR81521 | G81: 81521 Floor Replacement Sponge | O81: Barwalt | Q81: Stock | S81: =IF(Suggested="Yes",'Price List'!AA81,'Price List'!AG81) -> 5.45 | T81: EA | U81: =+Instructions!$B$3 -> N | W81: =+Instructions!$D$23 -> 0 | X81: 5.45 | Z81: YES | AA81: 5.45 | AB81: 0 | AC81: 5.45 | AD81: 0 | AF81: PR | AG81: 5.45 | AJ81: 5.45 | AK81: 0 | AL81: 0 | AO81: X
A82: TR | B82: Troxell - All Other | D82: TX09CADDY | F82: 09-CADDY Troxell Grout Caddy (Complete Set) | O82: Troxell | Q82: n/s | R82: New | S82: =IF(Suggested="Yes",'Price List'!AA82,'Price List'!AG82) -> 115.2 | T82: EA | U82: =+Instructions!$B$3 -> N | W82: =+Instructions!$D$23 -> 0 | X82: 115.2 | Z82: new | AA82: 115.2 | AB82: 0 | AC82: 115.2 | AD82: 0 | AF82: TR | AG82: 115.2 | AJ82: 115.2 | AK82: 0 | AL82: 0 | AO82: X
A83: TR | B83: Troxell - All Other | D83: TX09CADDYS | G83: Grout Caddy Replacement - 5"x11" Wall Sponge | O83: Troxell | Q83: n/s | R83: New | S83: =IF(Suggested="Yes",'Price List'!AA83,'Price List'!AG83) -> 6.2 | T83: EA | U83: =+Instructions!$B$3 -> N | W83: =+Instructions!$D$23 -> 0 | X83: 6.2 | Z83: new | AA83: 6.2 | AB83: 0 | AC83: 6.2 | AD83: 0 | AF83: TR | AG83: 6.2 | AJ83: 6.2 | AK83: 0 | AL83: 0 | AO83: X
A84: TR | B84: Troxell - All Other | D84: TX09CADDYH | G84: Grout Caddy Replacement - 5"x11" Wall Handle | O84: Troxell | Q84: n/s | R84: New | S84: =IF(Suggested="Yes",'Price List'!AA84,'Price List'!AG84) -> 9.1 | T84: EA | U84: =+Instructions!$B$3 -> N | W84: =+Instructions!$D$23 -> 0 | X84: 9.1 | Z84: new | AA84: 9.1 | AB84: 0 | AC84: 9.1 | AD84: 0 | AF84: TR | AG84: 9.1 | AJ84: 9.1 | AK84: 0 | AL84: 0 | AO84: X
A85: TR | B85: Troxell - All Other | D85: TX09CADDYSXL | G85: Grout Caddy Replacement - 8"x14" Floor Sponge | O85: Troxell | Q85: n/s | R85: New | S85: =IF(Suggested="Yes",'Price List'!AA85,'Price List'!AG85) -> 12.55 | T85: EA | U85: =+Instructions!$B$3 -> N | W85: =+Instructions!$D$23 -> 0 | X85: 12.55 | Z85: new | AA85: 12.55 | AB85: 0 | AC85: 12.55 | AD85: 0 | AF85: TR | AG85: 12.55 | AJ85: 12.55 | AK85: 0 | AL85: 0 | AO85: X
A86: TR | B86: Troxell - All Other | D86: TX09CADDYHXL | G86: Grout Caddy Replacement - 8"x14" Floor Handle | O86: Troxell | Q86: n/s | R86: New | S86: =IF(Suggested="Yes",'Price List'!AA86,'Price List'!AG86) -> 17.55 | T86: EA | U86: =+Instructions!$B$3 -> N | W86: =+Instructions!$D$23 -> 0 | X86: 17.55 | Z86: new | AA86: 17.55 | AB86: 0 | AC86: 17.55 | AD86: 0 | AF86: TR | AG86: 17.55 | AJ86: 17.55 | AK86: 0 | AL86: 0 | AO86: X
AO87: X
D88: Doodlebugs | AO88: X
A89: GU | B89: Gundlach - All | D89: GU8242 | F89: 8242 Medium Blue Doodlebug Pad | O89: Gundlach | Q89: Stock | S89: 5.15 | T89: EA | U89: =+Instructions!$B$3 -> N | W89: =+Instructions!$D$23 -> 0 | X89: 5.55 | Z89: YES | AA89: 5.55 | AB89: 0 | AC89: 5.55 | AD89: 0 | AF89: =+A89 -> GU | AG89: 5.55 | AJ89: 5.55 | AK89: =IF(VLOOKUP(AF89,Group,3,FALSE)="YES",VLOOKUP(ROUND(ROUND(AJ89,1)-AJ89,2),Round,2,FALSE)+VLOOKUP(AF89,Group,4,FALSE),0) -> 0 | AL89: =IF(VLOOKUP(AF89,Group,5,FALSE)="",0,ROUND(AJ89-0.04999,1)-AJ89+AM89) -> 0 | AM89: =IF(VLOOKUP(AF89,Group,5,FALSE)="","",VLOOKUP(AF89,Group,5,FALSE)) ->  | AO89: X
A90: GU | B90: Gundlach - All | D90: GU8440 | F90: 8440 Fine White Doodlebug Pad | O90: Gundlach | Q90: Stock | S90: 5.15 | T90: EA | U90: =+Instructions!$B$3 -> N | W90: =+Instructions!$D$23 -> 0 | X90: 5.55 | Z90: YES | AA90: 5.55 | AB90: 0 | AC90: 5.55 | AD90: 0 | AF90: =+A90 -> GU | AG90: 5.55 | AJ90: 5.55 | AK90: =IF(VLOOKUP(AF90,Group,3,FALSE)="YES",VLOOKUP(ROUND(ROUND(AJ90,1)-AJ90,2),Round,2,FALSE)+VLOOKUP(AF90,Group,4,FALSE),0) -> 0 | AL90: =IF(VLOOKUP(AF90,Group,5,FALSE)="",0,ROUND(AJ90-0.04999,1)-AJ90+AM90) -> 0 | AM90: =IF(VLOOKUP(AF90,Group,5,FALSE)="","",VLOOKUP(AF90,Group,5,FALSE)) ->  | AO90: X
A91: TR | B91: Troxell - All Other | D91: TX10112 | F91: 10-112 | G91: 6"x12" Scrub Pad Handle with Velcro | O91: Troxell | Q91: Stock | S91: =IF(Suggested="Yes",'Price List'!AA91,'Price List'!AG91) -> 9.1 | T91: EA | U91: =+Instructions!$B$3 -> N | W91: =+Instructions!$D$23 -> 0 | X91: 9.1 | Z91: YES | AA91: 9.1 | AB91: 0 | AC91: 9.1 | AD91: 0 | AF91: =+A91 -> TR | AG91: 9.1 | AJ91: 9.1 | AK91: =IF(VLOOKUP(AF91,Group,3,FALSE)="YES",VLOOKUP(ROUND(ROUND(AJ91,1)-AJ91,2),Round,2,FALSE)+VLOOKUP(AF91,Group,4,FALSE),0) -> 0 | AL91: =IF(VLOOKUP(AF91,Group,5,FALSE)="",0,ROUND(AJ91-0.04999,1)-AJ91+AM91) -> 0 | AM91: =IF(VLOOKUP(AF91,Group,5,FALSE)="","",VLOOKUP(AF91,Group,5,FALSE)) ->  | AO91: X
A92: TR | B92: Troxell - All Other | D92: TX10200 | F92: 10-200 | G92: 6"x12" Scrub Pad - White Fine | O92: Troxell | Q92: Stock | S92: =IF(Suggested="Yes",'Price List'!AA92,'Price List'!AG92) -> 5.15 | T92: EA | U92: =+Instructions!$B$3 -> N | W92: =+Instructions!$D$23 -> 0 | X92: =ROUND($AA92*(1-W92)+0.004999,2) -> 5.15 | Z92: YES | AA92: 5.15 | AB92: =+W92 -> 0 | AC92: =+X92 -> 5.15 | AD92: =(AG92-AC92)/AG92 -> 0 | AF92: =+A92 -> TR | AG92: =SUM(AJ92:AL92)+AE92 -> 5.15 | AJ92: =ROUND(AC92/(1-VLOOKUP(AF92,Group,2,FALSE)),2) -> 5.15 | AK92: =IF(VLOOKUP(AF92,Group,3,FALSE)="YES",VLOOKUP(ROUND(ROUND(AJ92,1)-AJ92,2),Round,2,FALSE)+VLOOKUP(AF92,Group,4,FALSE),0) -> 0 | AL92: =IF(VLOOKUP(AF92,Group,5,FALSE)="",0,ROUND(AJ92-0.04999,1)-AJ92+AM92) -> 0 | AM92: =IF(VLOOKUP(AF92,Group,5,FALSE)="","",VLOOKUP(AF92,Group,5,FALSE)) ->  | AO92: X
A93: TR | B93: Troxell - All Other | D93: TX10201 | F93: 10-201 | G93: 6"x12" Scrub Pad - Blue Medium | O93: Troxell | Q93: Stock | S93: =IF(Suggested="Yes",'Price List'!AA93,'Price List'!AG93) -> 6.6 | T93: EA | U93: =+Instructions!$B$3 -> N | W93: =+Instructions!$D$23 -> 0 | X93: 6.6 | Z93: YES | AA93: 6.6 | AB93: 0 | AC93: 6.6 | AD93: 0 | AF93: =+A93 -> TR | AG93: 6.6 | AJ93: 6.6 | AK93: =IF(VLOOKUP(AF93,Group,3,FALSE)="YES",VLOOKUP(ROUND(ROUND(AJ93,1)-AJ93,2),Round,2,FALSE)+VLOOKUP(AF93,Group,4,FALSE),0) -> 0 | AL93: =IF(VLOOKUP(AF93,Group,5,FALSE)="",0,ROUND(AJ93-0.04999,1)-AJ93+AM93) -> 0 | AM93: =IF(VLOOKUP(AF93,Group,5,FALSE)="","",VLOOKUP(AF93,Group,5,FALSE)) ->  | AO93: X
AO94: X
C95: continued on the next page | AO95: X
C96: Grouting Clean Up Systems / Sponges (continued) | AO96: X
AO97: X
D98: Sponges | AO98: X
A99: HY | B99: Hydra - All | D99: HY6HS | F99: TM-B | G99: 6" Medium Sponge | O99: Hydra | Q99: Stock | S99: =IF(Suggested="Yes",'Price List'!AA99,'Price List'!AG99) -> 1.85 | T99: EA | U99: =+Instructions!$B$3 -> N | W99: =+Instructions!$D$23 -> 0 | X99: 1.85 | Z99: YES | AA99: 1.85 | AB99: 0 | AC99: 1.85 | AD99: 0 | AF99: =+A99 -> HY | AG99: 1.85 | AJ99: 1.85 | AK99: =IF(VLOOKUP(AF99,Group,3,FALSE)="YES",VLOOKUP(ROUND(ROUND(AJ99,1)-AJ99,2),Round,2,FALSE)+VLOOKUP(AF99,Group,4,FALSE),0) -> 0 | AL99: =IF(VLOOKUP(AF99,Group,5,FALSE)="",0,ROUND(AJ99-0.04999,1)-AJ99+AM99) -> 0 | AM99: =IF(VLOOKUP(AF99,Group,5,FALSE)="","",VLOOKUP(AF99,Group,5,FALSE)) ->  | AO99: X
A100: HY | B100: Hydra - All | D100: HY6HS | F100: TM-B | G100: 6" Medium Sponge | J100: - Bag of 40 | O100: Hydra | Q100: Stock | R100: a | S100: =IF(Suggested="Yes",'Price List'!AA100,'Price List'!AG100) -> 1.35 | T100: EA | U100: =+Instructions!$B$3 -> N | W100: =+Instructions!$D$23 -> 0 | X100: 1.35 | Z100: YES | AA100: 1.35 | AB100: 0 | AC100: 1.35 | AD100: 0 | AF100: HY | AG100: 1.35 | AJ100: 1.35 | AK100: 0 | AL100: 0 | AO100: X
A101: HY | B101: Hydra - All | D101: HY6HS | F101: TM-B | G101: 6" Medium Sponge | J101: - Bail of 600 | O101: Hydra | Q101: Stock | R101: a | S101: =IF(Suggested="Yes",'Price List'!AA101,'Price List'!AG101) -> 1.15 | T101: EA | U101: =+Instructions!$B$3 -> N | W101: =+Instructions!$D$23 -> 0 | X101: 1.15 | Z101: YES | AA101: 1.15 | AB101: 0 | AC101: 1.15 | AD101: 0 | AF101: HY | AG101: 1.15 | AJ101: 1.15 | AK101: 0 | AL101: 0 | AO101: X
A102: HY | B102: Hydra - All | D102: HY8HS | F102: TXL-B | G102: 8" X-Large Sponge | O102: Hydra | Q102: Stock | S102: =IF(Suggested="Yes",'Price List'!AA102,'Price List'!AG102) -> 2.55 | T102: EA | U102: =+Instructions!$B$3 -> N | W102: =+Instructions!$D$23 -> 0 | X102: 2.55 | Z102: YES | AA102: 2.55 | AB102: 0 | AC102: 2.55 | AD102: 0 | AF102: HY | AG102: 2.55 | AJ102: 2.55 | AK102: 0 | AL102: 0 | AO102: X
A103: HY | B103: Hydra - All | D103: HY8HS | F103: TXL-B | G103: 8" X-Large Sponge | J103: - Bag of 25 | O103: Hydra | Q103: Stock | R103: a | S103: =IF(Suggested="Yes",'Price List'!AA103,'Price List'!AG103) -> 2.05 | T103: EA | U103: =+Instructions!$B$3 -> N | W103: =+Instructions!$D$23 -> 0 | X103: 2.05 | Z103: YES | AA103: 2.05 | AB103: 0 | AC103: 2.05 | AD103: 0 | AF103: HY | AG103: 2.05 | AJ103: 2.05 | AK103: 0 | AL103: 0 | AO103: X
A104: HY | B104: Hydra - All | D104: HY8HS | F104: TXL-B | G104: 8" X-Large Sponge | J104: - Bail of 450 | O104: Hydra | Q104: Stock | R104: a | S104: =IF(Suggested="Yes",'Price List'!AA104,'Price List'!AG104) -> 1.85 | T104: EA | U104: =+Instructions!$B$3 -> N | W104: =+Instructions!$D$23 -> 0 | X104: 1.85 | Z104: YES | AA104: 1.85 | AB104: 0 | AC104: 1.85 | AD104: 0 | AF104: HY | AG104: 1.85 | AJ104: 1.85 | AK104: 0 | AL104: 0 | AO104: X
A105: HY | B105: Hydra - All | D105: HYEPL | F105: EPL | G105: Epoxy Sponge White | O105: Hydra | Q105: Stock | S105: =IF(Suggested="Yes",'Price List'!AA105,'Price List'!AG105) -> 2.5 | T105: EA | U105: =+Instructions!$B$3 -> N | W105: =+Instructions!$D$23 -> 0 | X105: 2.5 | Z105: YES | AA105: 2.5 | AB105: 0 | AC105: 2.5 | AD105: 0 | AF105: HY | AG105: 2.5 | AJ105: 2.5 | AK105: 0 | AL105: 0 | AO105: X
AO106: X
D107: Notes: | E107: a) Special Pricing for FULL BAG and BAIL purchases. | AO107: X
AO108: X
C109: Tile Spacers | AO109: X
AO110: X
D111: Hollow Spacers - specially designed to be grouted over - they don't have to be removed | AO111: X
AO112: X
A113: PR | B113: Barwalt - All Other | D113: PR116G | F113: 1/16" + | H113: 16000 - Clamshell | L113: - 500 Count | O113: Barwalt | Q113: Stock | S113: =IF(Suggested="Yes",'Price List'!AA113,'Price List'!AG113) -> 8.85 | T113: EA | U113: =+Instructions!$B$3 -> N | W113: =+Instructions!$D$23 -> 0 | X113: =ROUND($AA113*(1-W113)+0.004999,2) -> 8.85 | Z113: YES | AA113: 8.85 | AB113: =+W113 -> 0 | AC113: =+X113 -> 8.85 | AD113: =(AG113-AC113)/AG113 -> 0 | AF113: =+A113 -> PR | AG113: =SUM(AJ113:AL113)+AE113 -> 8.85 | AJ113: =ROUND(AC113/(1-VLOOKUP(AF113,Group,2,FALSE)),2) -> 8.85 | AK113: =IF(VLOOKUP(AF113,Group,3,FALSE)="YES",VLOOKUP(ROUND(ROUND(AJ113,1)-AJ113,2),Round,2,FALSE)+VLOOKUP(AF113,Group,4,FALSE),0) -> 0 | AL113: =IF(VLOOKUP(AF113,Group,5,FALSE)="",0,ROUND(AJ113-0.04999,1)-AJ113+AM113) -> 0 | AM113: =IF(VLOOKUP(AF113,Group,5,FALSE)="","",VLOOKUP(AF113,Group,5,FALSE)) ->  | AO113: X
A114: PR | B114: Barwalt - All Other | D114: PR18H | F114: 1/8" + | H114: 16020 - Clamshell | L114: - 500 Count | O114: Barwalt | Q114: Stock | S114: =IF(Suggested="Yes",'Price List'!AA114,'Price List'!AG114) -> 8.85 | T114: EA | U114: =+Instructions!$B$3 -> N | W114: =+Instructions!$D$23 -> 0 | X114: 8.85 | Z114: YES | AA114: 8.85 | AB114: 0 | AC114: 8.85 | AD114: 0 | AF114: =+A114 -> PR | AG114: 8.85 | AJ114: 8.85 | AK114: =IF(VLOOKUP(AF114,Group,3,FALSE)="YES",VLOOKUP(ROUND(ROUND(AJ114,1)-AJ114,2),Round,2,FALSE)+VLOOKUP(AF114,Group,4,FALSE),0) -> 0 | AL114: =IF(VLOOKUP(AF114,Group,5,FALSE)="",0,ROUND(AJ114-0.04999,1)-AJ114+AM114) -> 0 | AM114: =IF(VLOOKUP(AF114,Group,5,FALSE)="","",VLOOKUP(AF114,Group,5,FALSE)) ->  | AO114: X
A115: PR | B115: Barwalt - All Other | D115: PR316H | F115: 3/16" + | H115: 16030 - Clamshell | L115: - 500 Count | O115: Barwalt | Q115: Stock | S115: =IF(Suggested="Yes",'Price List'!AA115,'Price List'!AG115) -> 8.85 | T115: EA | U115: =+Instructions!$B$3 -> N | W115: =+Instructions!$D$23 -> 0 | X115: 8.85 | Z115: YES | AA115: 8.85 | AB115: 0 | AC115: 8.85 | AD115: 0 | AF115: =+A115 -> PR | AG115: 8.85 | AJ115: 8.85 | AK115: =IF(VLOOKUP(AF115,Group,3,FALSE)="YES",VLOOKUP(ROUND(ROUND(AJ115,1)-AJ115,2),Round,2,FALSE)+VLOOKUP(AF115,Group,4,FALSE),0) -> 0 | AL115: =IF(VLOOKUP(AF115,Group,5,FALSE)="",0,ROUND(AJ115-0.04999,1)-AJ115+AM115) -> 0 | AM115: =IF(VLOOKUP(AF115,Group,5,FALSE)="","",VLOOKUP(AF115,Group,5,FALSE)) ->  | AO115: X
A116: PR | B116: Barwalt - All Other | D116: PR14H | F116: 1/4" + | H116: 16040 - Clamshell | L116: - 400 Count | O116: Barwalt | S116: =IF(Suggested="Yes",'Price List'!AA116,'Price List'!AG116) -> 8.85 | T116: EA | U116: =+Instructions!$B$3 -> N | W116: =+Instructions!$D$23 -> 0 | X116: 8.85 | Z116: YES | AA116: 8.85 | AB116: 0 | AC116: 8.85 | AD116: 0 | AF116: =+A116 -> PR | AG116: 8.85 | AJ116: 8.85 | AK116: =IF(VLOOKUP(AF116,Group,3,FALSE)="YES",VLOOKUP(ROUND(ROUND(AJ116,1)-AJ116,2),Round,2,FALSE)+VLOOKUP(AF116,Group,4,FALSE),0) -> 0 | AL116: =IF(VLOOKUP(AF116,Group,5,FALSE)="",0,ROUND(AJ116-0.04999,1)-AJ116+AM116) -> 0 | AM116: =IF(VLOOKUP(AF116,Group,5,FALSE)="","",VLOOKUP(AF116,Group,5,FALSE)) ->  | AO116: X
AO117: X
A118: PR | B118: Barwalt - All Other | D118: PR18TH | F118: 1/8" T | H118: 16120 - Clamshell | L118: - 500 Count | O118: Barwalt | Q118: Stock | S118: =IF(Suggested="Yes",'Price List'!AA118,'Price List'!AG118) -> 8.85 | T118: EA | U118: =+Instructions!$B$3 -> N | W118: =+Instructions!$D$23 -> 0 | X118: 8.85 | Z118: YES | AA118: 8.85 | AB118: 0 | AC118: 8.85 | AD118: 0 | AF118: =+A118 -> PR | AG118: 8.85 | AJ118: 8.85 | AK118: =IF(VLOOKUP(AF118,Group,3,FALSE)="YES",VLOOKUP(ROUND(ROUND(AJ118,1)-AJ118,2),Round,2,FALSE)+VLOOKUP(AF118,Group,4,FALSE),0) -> 0 | AL118: =IF(VLOOKUP(AF118,Group,5,FALSE)="",0,ROUND(AJ118-0.04999,1)-AJ118+AM118) -> 0 | AM118: =IF(VLOOKUP(AF118,Group,5,FALSE)="","",VLOOKUP(AF118,Group,5,FALSE)) ->  | AO118: X
A119: PR | B119: Barwalt - All Other | D119: PR316TH | F119: 3/16" T | H119: 16130 - Clamshell | L119: - 500 Count | O119: Barwalt | Q119: Stock | S119: =IF(Suggested="Yes",'Price List'!AA119,'Price List'!AG119) -> 8.85 | T119: EA | U119: =+Instructions!$B$3 -> N | W119: =+Instructions!$D$23 -> 0 | X119: 8.85 | Z119: YES | AA119: 8.85 | AB119: 0 | AC119: 8.85 | AD119: 0 | AF119: =+A119 -> PR | AG119: 8.85 | AJ119: 8.85 | AK119: =IF(VLOOKUP(AF119,Group,3,FALSE)="YES",VLOOKUP(ROUND(ROUND(AJ119,1)-AJ119,2),Round,2,FALSE)+VLOOKUP(AF119,Group,4,FALSE),0) -> 0 | AL119: =IF(VLOOKUP(AF119,Group,5,FALSE)="",0,ROUND(AJ119-0.04999,1)-AJ119+AM119) -> 0 | AM119: =IF(VLOOKUP(AF119,Group,5,FALSE)="","",VLOOKUP(AF119,Group,5,FALSE)) ->  | AO119: X
AO120: X
D121: Precision Tile Spacers | AO121: X
A122: PR | B122: Barwalt - All Other | D122: PR18 | F122: 1/8" + | H122: 10020 - Bag | L122: - 200 Count | O122: Barwalt | Q122: Stock | S122: =IF(Suggested="Yes",'Price List'!AA122,'Price List'!AG122) -> 2.3 | T122: EA | U122: =+Instructions!$B$3 -> N | W122: =+Instructions!$D$23 -> 0 | X122: 2.3 | Z122: YES | AA122: 2.3 | AB122: 0 | AC122: 2.3 | AD122: 0 | AF122: =+A122 -> PR | AG122: 2.3 | AJ122: 2.3 | AK122: =IF(VLOOKUP(AF122,Group,3,FALSE)="YES",VLOOKUP(ROUND(ROUND(AJ122,1)-AJ122,2),Round,2,FALSE)+VLOOKUP(AF122,Group,4,FALSE),0) -> 0 | AL122: =IF(VLOOKUP(AF122,Group,5,FALSE)="",0,ROUND(AJ122-0.04999,1)-AJ122+AM122) -> 0 | AM122: =IF(VLOOKUP(AF122,Group,5,FALSE)="","",VLOOKUP(AF122,Group,5,FALSE)) ->  | AO122: X
A123: PR | B123: Barwalt - All Other | D123: PR316 | F123: 3/16" + | H123: 10030 - Bag | L123: - 150 Count | O123: Barwalt | Q123: Stock | S123: =IF(Suggested="Yes",'Price List'!AA123,'Price List'!AG123) -> 2.3 | T123: EA | U123: =+Instructions!$B$3 -> N | W123: =+Instructions!$D$23 -> 0 | X123: 2.3 | Z123: YES | AA123: 2.3 | AB123: 0 | AC123: 2.3 | AD123: 0 | AF123: =+A123 -> PR | AG123: 2.3 | AJ123: 2.3 | AK123: =IF(VLOOKUP(AF123,Group,3,FALSE)="YES",VLOOKUP(ROUND(ROUND(AJ123,1)-AJ123,2),Round,2,FALSE)+VLOOKUP(AF123,Group,4,FALSE),0) -> 0 | AL123: =IF(VLOOKUP(AF123,Group,5,FALSE)="",0,ROUND(AJ123-0.04999,1)-AJ123+AM123) -> 0 | AM123: =IF(VLOOKUP(AF123,Group,5,FALSE)="","",VLOOKUP(AF123,Group,5,FALSE)) ->  | AO123: X
AO124: X
D125: Horseshoe Shim Spacers | AO125: X
A126: PR | B126: Barwalt - All Other | D126: PR116U | F126: 1/16" U | H126: 12000 - Box | L126: - 270 Count | O126: Barwalt | Q126: Stock | S126: =IF(Suggested="Yes",'Price List'!AA126,'Price List'!AG126) -> 18.95 | T126: EA | U126: =+Instructions!$B$3 -> N | W126: =+Instructions!$D$23 -> 0 | X126: 18.95 | Z126: YES | AA126: 18.95 | AB126: 0 | AC126: 18.95 | AD126: 0 | AF126: =+A126 -> PR | AG126: 18.95 | AJ126: 18.95 | AK126: =IF(VLOOKUP(AF126,Group,3,FALSE)="YES",VLOOKUP(ROUND(ROUND(AJ126,1)-AJ126,2),Round,2,FALSE)+VLOOKUP(AF126,Group,4,FALSE),0) -> 0 | AL126: =IF(VLOOKUP(AF126,Group,5,FALSE)="",0,ROUND(AJ126-0.04999,1)-AJ126+AM126) -> 0 | AM126: =IF(VLOOKUP(AF126,Group,5,FALSE)="","",VLOOKUP(AF126,Group,5,FALSE)) ->  | AO126: X
A127: PR | B127: Barwalt - All Other | D127: PR18U | F127: 1/8 U | H127: 12020 - Box | L127: - 160 Count | O127: Barwalt | Q127: Stock | S127: =IF(Suggested="Yes",'Price List'!AA127,'Price List'!AG127) -> 13.45 | T127: EA | U127: =+Instructions!$B$3 -> N | W127: =+Instructions!$D$23 -> 0 | X127: 13.45 | Z127: YES | AA127: 13.45 | AB127: 0 | AC127: 13.45 | AD127: 0 | AF127: =+A127 -> PR | AG127: 13.45 | AJ127: 13.45 | AK127: =IF(VLOOKUP(AF127,Group,3,FALSE)="YES",VLOOKUP(ROUND(ROUND(AJ127,1)-AJ127,2),Round,2,FALSE)+VLOOKUP(AF127,Group,4,FALSE),0) -> 0 | AL127: =IF(VLOOKUP(AF127,Group,5,FALSE)="",0,ROUND(AJ127-0.04999,1)-AJ127+AM127) -> 0 | AM127: =IF(VLOOKUP(AF127,Group,5,FALSE)="","",VLOOKUP(AF127,Group,5,FALSE)) ->  | AO127: X
AO128: X
D129: Wedges | AO129: X
A130: PR | B130: Barwalt - All Other | D130: PRWEDGEJAR | H130: 12370 - Reg. Wedges | L130: - 450 Count | O130: Barwalt | Q130: Stock | S130: =IF(Suggested="Yes",'Price List'!AA130,'Price List'!AG130) -> 6.4 | T130: EA | U130: =+Instructions!$B$3 -> N | W130: =+Instructions!$D$23 -> 0 | X130: 6.4 | Z130: YES | AA130: 6.4 | AB130: 0 | AC130: 6.4 | AD130: 0 | AF130: =+A130 -> PR | AG130: 6.4 | AJ130: 6.4 | AK130: =IF(VLOOKUP(AF130,Group,3,FALSE)="YES",VLOOKUP(ROUND(ROUND(AJ130,1)-AJ130,2),Round,2,FALSE)+VLOOKUP(AF130,Group,4,FALSE),0) -> 0 | AL130: =IF(VLOOKUP(AF130,Group,5,FALSE)="",0,ROUND(AJ130-0.04999,1)-AJ130+AM130) -> 0 | AM130: =IF(VLOOKUP(AF130,Group,5,FALSE)="","",VLOOKUP(AF130,Group,5,FALSE)) ->  | AO130: X
A131: PR | B131: Barwalt - All Other | D131: PRWEDGESUPER | H131: 12380 - Super Wedges | L131: - 75 Count | O131: Barwalt | Q131: Stock | S131: =IF(Suggested="Yes",'Price List'!AA131,'Price List'!AG131) -> 6.4 | T131: EA | U131: =+Instructions!$B$3 -> N | W131: =+Instructions!$D$23 -> 0 | X131: 6.4 | Z131: YES | AA131: 6.4 | AB131: 0 | AC131: 6.4 | AD131: 0 | AF131: =+A131 -> PR | AG131: 6.4 | AJ131: 6.4 | AK131: =IF(VLOOKUP(AF131,Group,3,FALSE)="YES",VLOOKUP(ROUND(ROUND(AJ131,1)-AJ131,2),Round,2,FALSE)+VLOOKUP(AF131,Group,4,FALSE),0) -> 0 | AL131: =IF(VLOOKUP(AF131,Group,5,FALSE)="",0,ROUND(AJ131-0.04999,1)-AJ131+AM131) -> 0 | AM131: =IF(VLOOKUP(AF131,Group,5,FALSE)="","",VLOOKUP(AF131,Group,5,FALSE)) ->  | AO131: X
A132: PR | B132: Barwalt - All Other | D132: PR16370 | H132: 16370 - Gripper Wedges | L132: - 550 Count | O132: Barwalt | Q132: Stock | S132: =IF(Suggested="Yes",'Price List'!AA132,'Price List'!AG132) -> 8.9 | T132: EA | U132: =+Instructions!$B$3 -> N | W132: =+Instructions!$D$23 -> 0 | X132: 8.9 | Z132: YES | AA132: 8.9 | AB132: 0 | AC132: 8.9 | AD132: 0 | AF132: =+A132 -> PR | AG132: 8.9 | AJ132: 8.9 | AK132: =IF(VLOOKUP(AF132,Group,3,FALSE)="YES",VLOOKUP(ROUND(ROUND(AJ132,1)-AJ132,2),Round,2,FALSE)+VLOOKUP(AF132,Group,4,FALSE),0) -> 0 | AL132: =IF(VLOOKUP(AF132,Group,5,FALSE)="",0,ROUND(AJ132-0.04999,1)-AJ132+AM132) -> 0 | AM132: =IF(VLOOKUP(AF132,Group,5,FALSE)="","",VLOOKUP(AF132,Group,5,FALSE)) ->  | AO132: X
AO133: X
D134: Chasers/Removers | AO134: X
A135: PR | B135: Barwalt - All Other | D135: PRSC1 | F135: 84000 SC-1 Spacer Chaser | O135: Barwalt | S135: =IF(Suggested="Yes",'Price List'!AA135,'Price List'!AG135) -> 3.5 | T135: EA | U135: =+Instructions!$B$3 -> N | W135: =+Instructions!$D$23 -> 0 | X135: 3.5 | Z135: YES | AA135: 3.5 | AB135: 0 | AC135: 3.5 | AD135: 0 | AF135: =+A135 -> PR | AG135: 3.5 | AJ135: 3.5 | AK135: =IF(VLOOKUP(AF135,Group,3,FALSE)="YES",VLOOKUP(ROUND(ROUND(AJ135,1)-AJ135,2),Round,2,FALSE)+VLOOKUP(AF135,Group,4,FALSE),0) -> 0 | AL135: =IF(VLOOKUP(AF135,Group,5,FALSE)="",0,ROUND(AJ135-0.04999,1)-AJ135+AM135) -> 0 | AM135: =IF(VLOOKUP(AF135,Group,5,FALSE)="","",VLOOKUP(AF135,Group,5,FALSE)) ->  | AO135: X
AO136: X
C137: Lippage Reduction Systems | AO137: X
AO138: X
D139: ProLeveling System | AO139: X
AO140: X
A141: PP | B141: Progress Profiles - All | D141: PPPRSL1 | F141: 1 mm - 1/16" | H141: PRSL1 | I141: Linear Levelers | M141: - 100 Count | O141: Progress | Q141: Stock | S141: =IF(Suggested="Yes",'Price List'!AA141,'Price List'!AG141) -> 31.8 | T141: EA | U141: =+Instructions!$B$3 -> N | W141: =+Instructions!$D$23 -> 0 | X141: =ROUND($AA141*(1-W141)+0.004999,2) -> 31.8 | Z141: YES | AA141: 31.8 | AB141: =+W141 -> 0 | AC141: =+X141 -> 31.8 | AD141: =(AG141-AC141)/AG141 -> 0 | AF141: =+A141 -> PP | AG141: =SUM(AJ141:AL141)+AE141 -> 31.8 | AJ141: =ROUND(AC141/(1-VLOOKUP(AF141,Group,2,FALSE)),2) -> 31.8 | AK141: =IF(VLOOKUP(AF141,Group,3,FALSE)="YES",VLOOKUP(ROUND(ROUND(AJ141,1)-AJ141,2),Round,2,FALSE)+VLOOKUP(AF141,Group,4,FALSE),0) -> 0 | AL141: =IF(VLOOKUP(AF141,Group,5,FALSE)="",0,ROUND(AJ141-0.04999,1)-AJ141+AM141) -> 0 | AM141: =IF(VLOOKUP(AF141,Group,5,FALSE)="","",VLOOKUP(AF141,Group,5,FALSE)) ->  | AO141: X
A142: PP | B142: Progress Profiles - All | D142: PPPRSL2 | F142: 2 mm - 3/32" | H142: PRSL2 | I142: Linear Levelers | M142: - 100 Count | O142: Progress | Q142: Stock | S142: =IF(Suggested="Yes",'Price List'!AA142,'Price List'!AG142) -> 43.45 | T142: EA | U142: =+Instructions!$B$3 -> N | W142: =+Instructions!$D$23 -> 0 | X142: 43.45 | Z142: YES | AA142: 43.45 | AB142: 0 | AC142: 43.45 | AD142: 0 | AF142: =+A142 -> PP | AG142: 43.45 | AJ142: 43.45 | AK142: =IF(VLOOKUP(AF142,Group,3,FALSE)="YES",VLOOKUP(ROUND(ROUND(AJ142,1)-AJ142,2),Round,2,FALSE)+VLOOKUP(AF142,Group,4,FALSE),0) -> 0 | AL142: =IF(VLOOKUP(AF142,Group,5,FALSE)="",0,ROUND(AJ142-0.04999,1)-AJ142+AM142) -> 0 | AM142: =IF(VLOOKUP(AF142,Group,5,FALSE)="","",VLOOKUP(AF142,Group,5,FALSE)) ->  | AO142: X
A143: PP | B143: Progress Profiles - All | D143: PPPRSL3 | F143: 3 mm - 1/8" | H143: PRSL3 | I143: Linear Levelers | M143: - 100 Count | O143: Progress | Q143: Stock | S143: =IF(Suggested="Yes",'Price List'!AA143,'Price List'!AG143) -> 43.45 | T143: EA | U143: =+Instructions!$B$3 -> N | W143: =+Instructions!$D$23 -> 0 | X143: 43.45 | Z143: YES | AA143: 43.45 | AB143: 0 | AC143: 43.45 | AD143: 0 | AF143: =+A143 -> PP | AG143: 43.45 | AJ143: 43.45 | AK143: =IF(VLOOKUP(AF143,Group,3,FALSE)="YES",VLOOKUP(ROUND(ROUND(AJ143,1)-AJ143,2),Round,2,FALSE)+VLOOKUP(AF143,Group,4,FALSE),0) -> 0 | AL143: =IF(VLOOKUP(AF143,Group,5,FALSE)="",0,ROUND(AJ143-0.04999,1)-AJ143+AM143) -> 0 | AM143: =IF(VLOOKUP(AF143,Group,5,FALSE)="","",VLOOKUP(AF143,Group,5,FALSE)) ->  | AO143: X
A144: PP | B144: Progress Profiles - All | D144: PPPRSL5 | F144: 5 mm - 3/16" | H144: PRSL5 | I144: Linear Levelers | M144: - 100 Count | O144: Progress | Q144: Stock | S144: =IF(Suggested="Yes",'Price List'!AA144,'Price List'!AG144) -> 43.45 | T144: EA | U144: =+Instructions!$B$3 -> N | W144: =+Instructions!$D$23 -> 0 | X144: 43.45 | Z144: YES | AA144: 43.45 | AB144: 0 | AC144: 43.45 | AD144: 0 | AF144: =+A144 -> PP | AG144: 43.45 | AJ144: 43.45 | AK144: =IF(VLOOKUP(AF144,Group,3,FALSE)="YES",VLOOKUP(ROUND(ROUND(AJ144,1)-AJ144,2),Round,2,FALSE)+VLOOKUP(AF144,Group,4,FALSE),0) -> 0 | AL144: =IF(VLOOKUP(AF144,Group,5,FALSE)="",0,ROUND(AJ144-0.04999,1)-AJ144+AM144) -> 0 | AM144: =IF(VLOOKUP(AF144,Group,5,FALSE)="","",VLOOKUP(AF144,Group,5,FALSE)) ->  | AO144: X
AO145: X
A146: PP | B146: Progress Profiles - All | D146: PPPRST1 | F146: 1 mm - 1/16" | H146: PRST1 | I146: T-Shaped Levelers | M146: - 100 Count | O146: Progress | Q146: Stock | S146: =IF(Suggested="Yes",'Price List'!AA146,'Price List'!AG146) -> 43.45 | T146: EA | U146: =+Instructions!$B$3 -> N | W146: =+Instructions!$D$23 -> 0 | X146: 43.45 | Z146: YES | AA146: 43.45 | AB146: 0 | AC146: 43.45 | AD146: 0 | AF146: =+A146 -> PP | AG146: 43.45 | AJ146: 43.45 | AK146: =IF(VLOOKUP(AF146,Group,3,FALSE)="YES",VLOOKUP(ROUND(ROUND(AJ146,1)-AJ146,2),Round,2,FALSE)+VLOOKUP(AF146,Group,4,FALSE),0) -> 0 | AL146: =IF(VLOOKUP(AF146,Group,5,FALSE)="",0,ROUND(AJ146-0.04999,1)-AJ146+AM146) -> 0 | AM146: =IF(VLOOKUP(AF146,Group,5,FALSE)="","",VLOOKUP(AF146,Group,5,FALSE)) ->  | AO146: X
A147: PP | B147: Progress Profiles - All | D147: PPPRST2 | F147: 2 mm - 3/32" | H147: PRST2 | I147: T-Shaped Levelers | M147: - 100 Count | O147: Progress | Q147: Stock | S147: =IF(Suggested="Yes",'Price List'!AA147,'Price List'!AG147) -> 43.45 | T147: EA | U147: =+Instructions!$B$3 -> N | W147: =+Instructions!$D$23 -> 0 | X147: 43.45 | Z147: YES | AA147: 43.45 | AB147: 0 | AC147: 43.45 | AD147: 0 | AF147: =+A147 -> PP | AG147: 43.45 | AJ147: 43.45 | AK147: =IF(VLOOKUP(AF147,Group,3,FALSE)="YES",VLOOKUP(ROUND(ROUND(AJ147,1)-AJ147,2),Round,2,FALSE)+VLOOKUP(AF147,Group,4,FALSE),0) -> 0 | AL147: =IF(VLOOKUP(AF147,Group,5,FALSE)="",0,ROUND(AJ147-0.04999,1)-AJ147+AM147) -> 0 | AM147: =IF(VLOOKUP(AF147,Group,5,FALSE)="","",VLOOKUP(AF147,Group,5,FALSE)) ->  | AO147: X
A148: PP | B148: Progress Profiles - All | D148: PPPRST3 | F148: 3 mm - 1/8" | H148: PRST3 | I148: T-Shaped Levelers | M148: - 100 Count | O148: Progress | Q148: Stock | S148: =IF(Suggested="Yes",'Price List'!AA148,'Price List'!AG148) -> 43.45 | T148: EA | U148: =+Instructions!$B$3 -> N | W148: =+Instructions!$D$23 -> 0 | X148: 43.45 | Z148: YES | AA148: 43.45 | AB148: 0 | AC148: 43.45 | AD148: 0 | AF148: =+A148 -> PP | AG148: 43.45 | AJ148: 43.45 | AK148: =IF(VLOOKUP(AF148,Group,3,FALSE)="YES",VLOOKUP(ROUND(ROUND(AJ148,1)-AJ148,2),Round,2,FALSE)+VLOOKUP(AF148,Group,4,FALSE),0) -> 0 | AL148: =IF(VLOOKUP(AF148,Group,5,FALSE)="",0,ROUND(AJ148-0.04999,1)-AJ148+AM148) -> 0 | AM148: =IF(VLOOKUP(AF148,Group,5,FALSE)="","",VLOOKUP(AF148,Group,5,FALSE)) ->  | AO148: X
A149: PP | B149: Progress Profiles - All | D149: PPPRST5 | F149: 5 mm - 3/16" | H149: PRST5 | I149: T-Shaped Levelers | M149: - 100 Count | O149: Progress | Q149: Stock | S149: =IF(Suggested="Yes",'Price List'!AA149,'Price List'!AG149) -> 43.45 | T149: EA | U149: =+Instructions!$B$3 -> N | W149: =+Instructions!$D$23 -> 0 | X149: 43.45 | Z149: YES | AA149: 43.45 | AB149: 0 | AC149: 43.45 | AD149: 0 | AF149: =+A149 -> PP | AG149: 43.45 | AJ149: 43.45 | AK149: =IF(VLOOKUP(AF149,Group,3,FALSE)="YES",VLOOKUP(ROUND(ROUND(AJ149,1)-AJ149,2),Round,2,FALSE)+VLOOKUP(AF149,Group,4,FALSE),0) -> 0 | AL149: =IF(VLOOKUP(AF149,Group,5,FALSE)="",0,ROUND(AJ149-0.04999,1)-AJ149+AM149) -> 0 | AM149: =IF(VLOOKUP(AF149,Group,5,FALSE)="","",VLOOKUP(AF149,Group,5,FALSE)) ->  | AO149: X
AO150: X
A151: PP | B151: Progress Profiles - All | D151: PPPRSC1 | F151: 1 mm - 1/16" | H151: PRSC1 | I151: Cross-Shaped Levelers | M151: - 100 Count | O151: Progress | Q151: Stock | S151: =IF(Suggested="Yes",'Price List'!AA151,'Price List'!AG151) -> 43.45 | T151: EA | U151: =+Instructions!$B$3 -> N | W151: =+Instructions!$D$23 -> 0 | X151: 43.45 | Z151: YES | AA151: 43.45 | AB151: 0 | AC151: 43.45 | AD151: 0 | AF151: =+A151 -> PP | AG151: 43.45 | AJ151: 43.45 | AK151: =IF(VLOOKUP(AF151,Group,3,FALSE)="YES",VLOOKUP(ROUND(ROUND(AJ151,1)-AJ151,2),Round,2,FALSE)+VLOOKUP(AF151,Group,4,FALSE),0) -> 0 | AL151: =IF(VLOOKUP(AF151,Group,5,FALSE)="",0,ROUND(AJ151-0.04999,1)-AJ151+AM151) -> 0 | AM151: =IF(VLOOKUP(AF151,Group,5,FALSE)="","",VLOOKUP(AF151,Group,5,FALSE)) ->  | AO151: X
A152: PP | B152: Progress Profiles - All | D152: PPPRSC2 | F152: 2 mm - 3/32" | H152: PRSC2 | I152: Cross-Shaped Levelers | M152: - 100 Count | O152: Progress | Q152: Stock | S152: =IF(Suggested="Yes",'Price List'!AA152,'Price List'!AG152) -> 43.45 | T152: EA | U152: =+Instructions!$B$3 -> N | W152: =+Instructions!$D$23 -> 0 | X152: 43.45 | Z152: YES | AA152: 43.45 | AB152: 0 | AC152: 43.45 | AD152: 0 | AF152: =+A152 -> PP | AG152: 43.45 | AJ152: 43.45 | AK152: =IF(VLOOKUP(AF152,Group,3,FALSE)="YES",VLOOKUP(ROUND(ROUND(AJ152,1)-AJ152,2),Round,2,FALSE)+VLOOKUP(AF152,Group,4,FALSE),0) -> 0 | AL152: =IF(VLOOKUP(AF152,Group,5,FALSE)="",0,ROUND(AJ152-0.04999,1)-AJ152+AM152) -> 0 | AM152: =IF(VLOOKUP(AF152,Group,5,FALSE)="","",VLOOKUP(AF152,Group,5,FALSE)) ->  | AO152: X
A153: PP | B153: Progress Profiles - All | D153: PPPRSC3 | F153: 3 mm - 1/8" | H153: PRSC3 | I153: Cross-Shaped Levelers | M153: - 100 Count | O153: Progress | Q153: Stock | S153: =IF(Suggested="Yes",'Price List'!AA153,'Price List'!AG153) -> 43.45 | T153: EA | U153: =+Instructions!$B$3 -> N | W153: =+Instructions!$D$23 -> 0 | X153: 43.45 | Z153: YES | AA153: 43.45 | AB153: 0 | AC153: 43.45 | AD153: 0 | AF153: =+A153 -> PP | AG153: 43.45 | AJ153: 43.45 | AK153: =IF(VLOOKUP(AF153,Group,3,FALSE)="YES",VLOOKUP(ROUND(ROUND(AJ153,1)-AJ153,2),Round,2,FALSE)+VLOOKUP(AF153,Group,4,FALSE),0) -> 0 | AL153: =IF(VLOOKUP(AF153,Group,5,FALSE)="",0,ROUND(AJ153-0.04999,1)-AJ153+AM153) -> 0 | AM153: =IF(VLOOKUP(AF153,Group,5,FALSE)="","",VLOOKUP(AF153,Group,5,FALSE)) ->  | AO153: X
A154: PP | B154: Progress Profiles - All | D154: PPPRSC5 | F154: 5 mm - 3/16" | H154: PRSC5 | I154: Cross-Shaped Levelers | M154: - 100 Count | O154: Progress | Q154: Stock | S154: =IF(Suggested="Yes",'Price List'!AA154,'Price List'!AG154) -> 43.45 | T154: EA | U154: =+Instructions!$B$3 -> N | W154: =+Instructions!$D$23 -> 0 | X154: 43.45 | Z154: YES | AA154: 43.45 | AB154: 0 | AC154: 43.45 | AD154: 0 | AF154: =+A154 -> PP | AG154: 43.45 | AJ154: 43.45 | AK154: =IF(VLOOKUP(AF154,Group,3,FALSE)="YES",VLOOKUP(ROUND(ROUND(AJ154,1)-AJ154,2),Round,2,FALSE)+VLOOKUP(AF154,Group,4,FALSE),0) -> 0 | AL154: =IF(VLOOKUP(AF154,Group,5,FALSE)="",0,ROUND(AJ154-0.04999,1)-AJ154+AM154) -> 0 | AM154: =IF(VLOOKUP(AF154,Group,5,FALSE)="","",VLOOKUP(AF154,Group,5,FALSE)) ->  | AO154: X
AO155: X
A156: PP | B156: Progress Profiles - All | D156: PPPRST | F156: PRST | G156: Universal Rotating Pommel Cap (re-usable) | M156: - 50 Count | O156: Progress | Q156: Stock | S156: =IF(Suggested="Yes",'Price List'!AA156,'Price List'!AG156) -> 81.65 | T156: EA | U156: =+Instructions!$B$3 -> N | W156: =+Instructions!$D$23 -> 0 | X156: 81.65 | Z156: YES | AA156: 81.65 | AB156: 0 | AC156: 81.65 | AD156: 0 | AF156: =+A156 -> PP | AG156: 81.65 | AJ156: 81.65 | AK156: =IF(VLOOKUP(AF156,Group,3,FALSE)="YES",VLOOKUP(ROUND(ROUND(AJ156,1)-AJ156,2),Round,2,FALSE)+VLOOKUP(AF156,Group,4,FALSE),0) -> 0 | AL156: =IF(VLOOKUP(AF156,Group,5,FALSE)="",0,ROUND(AJ156-0.04999,1)-AJ156+AM156) -> 0 | AM156: =IF(VLOOKUP(AF156,Group,5,FALSE)="","",VLOOKUP(AF156,Group,5,FALSE)) ->  | AO156: X
A157: PP | B157: Progress Profiles - All | D157: PPPRSTT | F157: PRSTT | G157: Transparent Rotating Pommel Cap (re-usable) | M157: - 50 Count | O157: Progress | Q157: Stock | S157: =IF(Suggested="Yes",'Price List'!AA157,'Price List'!AG157) -> 96 | T157: EA | U157: =+Instructions!$B$3 -> N | W157: =+Instructions!$D$23 -> 0 | X157: =ROUND($AA157*(1-W157)+0.004999,2) -> 96 | Z157: YES | AA157: 96 | AB157: =+W157 -> 0 | AC157: =+X157 -> 96 | AD157: =(AG157-AC157)/AG157 -> 0 | AF157: =+A157 -> PP | AG157: =SUM(AJ157:AL157)+AE157 -> 96 | AJ157: =ROUND(AC157/(1-VLOOKUP(AF157,Group,2,FALSE)),2) -> 96 | AK157: =IF(VLOOKUP(AF157,Group,3,FALSE)="YES",VLOOKUP(ROUND(ROUND(AJ157,1)-AJ157,2),Round,2,FALSE)+VLOOKUP(AF157,Group,4,FALSE),0) -> 0 | AL157: =IF(VLOOKUP(AF157,Group,5,FALSE)="",0,ROUND(AJ157-0.04999,1)-AJ157+AM157) -> 0 | AM157: =IF(VLOOKUP(AF157,Group,5,FALSE)="","",VLOOKUP(AF157,Group,5,FALSE)) ->  | AO157: X
A158: PP | B158: Progress Profiles - All | D158: PPPRSPC | F158: PRSPC | G158: System Protection Cap (re-usable) | M158: - 50 Count | O158: Progress | Q158: Stock | S158: =IF(Suggested="Yes",'Price List'!AA158,'Price List'!AG158) -> 80.95 | T158: EA | U158: =+Instructions!$B$3 -> N | W158: =+Instructions!$D$23 -> 0 | X158: 80.95 | Z158: YES | AA158: 80.95 | AB158: 0 | AC158: 80.95 | AD158: 0 | AF158: =+A158 -> PP | AG158: 80.95 | AJ158: 80.95 | AK158: =IF(VLOOKUP(AF158,Group,3,FALSE)="YES",VLOOKUP(ROUND(ROUND(AJ158,1)-AJ158,2),Round,2,FALSE)+VLOOKUP(AF158,Group,4,FALSE),0) -> 0 | AL158: =IF(VLOOKUP(AF158,Group,5,FALSE)="",0,ROUND(AJ158-0.04999,1)-AJ158+AM158) -> 0 | AM158: =IF(VLOOKUP(AF158,Group,5,FALSE)="","",VLOOKUP(AF158,Group,5,FALSE)) ->  | AO158: X
A159: PP | B159: Progress Profiles - All | D159: PPPRSSV | F159: PRSSV | G159: Pommel Remover | O159: Progress | Q159: Stock | S159: =IF(Suggested="Yes",'Price List'!AA159,'Price List'!AG159) -> 1.6 | T159: EA | U159: =+Instructions!$B$3 -> N | W159: =+Instructions!$D$23 -> 0 | X159: 1.6 | Z159: YES | AA159: 1.6 | AB159: 0 | AC159: 1.6 | AD159: 0 | AF159: =+A159 -> PP | AG159: 1.6 | AJ159: 1.6 | AK159: =IF(VLOOKUP(AF159,Group,3,FALSE)="YES",VLOOKUP(ROUND(ROUND(AJ159,1)-AJ159,2),Round,2,FALSE)+VLOOKUP(AF159,Group,4,FALSE),0) -> 0 | AL159: =IF(VLOOKUP(AF159,Group,5,FALSE)="",0,ROUND(AJ159-0.04999,1)-AJ159+AM159) -> 0 | AM159: =IF(VLOOKUP(AF159,Group,5,FALSE)="","",VLOOKUP(AF159,Group,5,FALSE)) ->  | AO159: X
AO160: X
D161: Delta Leveling System | AO161: X
A163: RU | B163: Rubi - All Other | D163: RU02842 | F163: 1/16" Clip | H163: 02842 Delta Leveling System | M163: - 400 Count | O163: Rubi | Q163: Stock | S163: =IF(Suggested="Yes",'Price List'!AA163,'Price List'!AG163) -> 41 | T163: EA | U163: =+Instructions!$B$3 -> N | W163: =+Instructions!$D$23 -> 0 | X163: =ROUND($AA163*(1-W163)+0.004999,2) -> 41 | Z163: YES | AA163: 41 | AB163: =+W163 -> 0 | AC163: 41 | AD163: =(AG163-AC163)/AG163 -> 0 | AF163: =+A163 -> RU | AG163: =SUM(AJ163:AL163)+AE163 -> 41 | AJ163: =ROUND(AC163/(1-VLOOKUP(AF163,Group,2,FALSE)),2) -> 41 | AK163: =IF(VLOOKUP(AF163,Group,3,FALSE)="YES",VLOOKUP(ROUND(ROUND(AJ163,1)-AJ163,2),Round,2,FALSE)+VLOOKUP(AF163,Group,4,FALSE),0) -> 0 | AL163: =IF(VLOOKUP(AF163,Group,5,FALSE)="",0,ROUND(AJ163-0.04999,1)-AJ163+AM163) -> 0 | AM163: =IF(VLOOKUP(AF163,Group,5,FALSE)="","",VLOOKUP(AF163,Group,5,FALSE)) ->  | AO163: X
A164: RU | B164: Rubi - All Other | D164: RU02868 | F164: 1/8" Clip | H164: 02868 Delta Leveling System | M164: - 400 Count | O164: Rubi | R164: New | S164: =IF(Suggested="Yes",'Price List'!AA164,'Price List'!AG164) -> 41.05 | T164: EA | U164: =+Instructions!$B$3 -> N | W164: =+Instructions!$D$23 -> 0 | X164: =ROUND($AA164*(1-W164)+0.004999,2) -> 41.05 | Z164: new | AA164: 41.05 | AB164: =+W164 -> 0 | AC164: =+X164 -> 41.05 | AD164: =(AG164-AC164)/AG164 -> 0 | AF164: =+A164 -> RU | AG164: =SUM(AJ164:AL164)+AE164 -> 41.05 | AJ164: =ROUND(AC164/(1-VLOOKUP(AF164,Group,2,FALSE)),2) -> 41.05 | AK164: =IF(VLOOKUP(AF164,Group,3,FALSE)="YES",VLOOKUP(ROUND(ROUND(AJ164,1)-AJ164,2),Round,2,FALSE)+VLOOKUP(AF164,Group,4,FALSE),0) -> 0 | AL164: =IF(VLOOKUP(AF164,Group,5,FALSE)="",0,ROUND(AJ164-0.04999,1)-AJ164+AM164) -> 0 | AM164: =IF(VLOOKUP(AF164,Group,5,FALSE)="","",VLOOKUP(AF164,Group,5,FALSE)) ->  | AO164: X
A165: RU | B165: Rubi - All Other | D165: RU02845 | F165: Wedge | H165: 02845 Delta Leveling System | M165: - 400 Count | O165: Rubi | Q165: Stock | S165: =IF(Suggested="Yes",'Price List'!AA165,'Price List'!AG165) -> 52.8 | T165: EA | U165: =+Instructions!$B$3 -> N | W165: =+Instructions!$D$23 -> 0 | X165: =ROUND($AA165*(1-W165)+0.004999,2) -> 52.8 | Z165: YES | AA165: 52.8 | AB165: 0 | AC165: 52.8 | AD165: =(AG165-AC165)/AG165 -> 0 | AF165: =+A165 -> RU | AG165: =SUM(AJ165:AL165)+AE165 -> 52.8 | AJ165: =ROUND(AC165/(1-VLOOKUP(AF165,Group,2,FALSE)),2) -> 52.8 | AK165: =IF(VLOOKUP(AF165,Group,3,FALSE)="YES",VLOOKUP(ROUND(ROUND(AJ165,1)-AJ165,2),Round,2,FALSE)+VLOOKUP(AF165,Group,4,FALSE),0) -> 0 | AL165: =IF(VLOOKUP(AF165,Group,5,FALSE)="",0,ROUND(AJ165-0.04999,1)-AJ165+AM165) -> 0 | AM165: =IF(VLOOKUP(AF165,Group,5,FALSE)="","",VLOOKUP(AF165,Group,5,FALSE)) ->  | AO165: X
A166: RU | B166: Rubi - All Other | D166: RU03901 | F166: Pliers | H166: 03901 Tile Level Pliers Fast-Fix | O166: Rubi | Q166: Stock | S166: =IF(Suggested="Yes",'Price List'!AA166,'Price List'!AG166) -> 37.7 | T166: EA | U166: =+Instructions!$B$3 -> N | W166: =+Instructions!$D$23 -> 0 | X166: =ROUND($AA166*(1-W166)+0.004999,2) -> 37.7 | Z166: new | AA166: 37.7 | AB166: 0 | AC166: 37.7 | AD166: =(AG166-AC166)/AG166 -> 0 | AF166: =+A166 -> RU | AG166: =SUM(AJ166:AL166)+AE166 -> 37.7 | AJ166: =ROUND(AC166/(1-VLOOKUP(AF166,Group,2,FALSE)),2) -> 37.7 | AK166: =IF(VLOOKUP(AF166,Group,3,FALSE)="YES",VLOOKUP(ROUND(ROUND(AJ166,1)-AJ166,2),Round,2,FALSE)+VLOOKUP(AF166,Group,4,FALSE),0) -> 0 | AL166: =IF(VLOOKUP(AF166,Group,5,FALSE)="",0,ROUND(AJ166-0.04999,1)-AJ166+AM166) -> 0 | AM166: =IF(VLOOKUP(AF166,Group,5,FALSE)="","",VLOOKUP(AF166,Group,5,FALSE)) ->  | AO166: X
C168: Knee Pads | AO168: X
AO169: X
A170: PR | B170: Barwalt - All Other | D170: PRKN1 | F170: 20010 KN-1 UltraLight | O170: Barwalt | Q170: Stock | S170: =IF(Suggested="Yes",'Price List'!AA170,'Price List'!AG170) -> 20.4 | T170: EA | U170: =+Instructions!$B$3 -> N | W170: =+Instructions!$D$23 -> 0 | X170: =ROUND($AA170*(1-W170)+0.004999,2) -> 20.4 | Z170: YES | AA170: 20.4 | AB170: =+W170 -> 0 | AC170: =+X170 -> 20.4 | AD170: =(AG170-AC170)/AG170 -> 0 | AF170: =+A170 -> PR | AG170: =SUM(AJ170:AL170)+AE170 -> 20.4 | AJ170: =ROUND(AC170/(1-VLOOKUP(AF170,Group,2,FALSE)),2) -> 20.4 | AK170: =IF(VLOOKUP(AF170,Group,3,FALSE)="YES",VLOOKUP(ROUND(ROUND(AJ170,1)-AJ170,2),Round,2,FALSE)+VLOOKUP(AF170,Group,4,FALSE),0) -> 0 | AL170: =IF(VLOOKUP(AF170,Group,5,FALSE)="",0,ROUND(AJ170-0.04999,1)-AJ170+AM170) -> 0 | AM170: =IF(VLOOKUP(AF170,Group,5,FALSE)="","",VLOOKUP(AF170,Group,5,FALSE)) ->  | AO170: X
A171: PR | B171: Barwalt - All Other | D171: PRKN1BUTTON | G171: 20993 Replacement Buttons for KN-1 | O171: Barwalt | S171: =IF(Suggested="Yes",'Price List'!AA171,'Price List'!AG171) -> 2.9 | T171: EA | U171: =+Instructions!$B$3 -> N | W171: =+Instructions!$D$23 -> 0 | X171: 2.9 | Z171: YES | AA171: 2.9 | AB171: 0 | AC171: 2.9 | AD171: 0 | AF171: PR | AG171: 2.9 | AJ171: 2.9 | AK171: 0 | AL171: 0 | AO171: X
A172: PR | B172: Barwalt - All Other | D172: PRKN1LINER | G172: 20992 Replacement Liner for KN-1 | O172: Barwalt | S172: =IF(Suggested="Yes",'Price List'!AA172,'Price List'!AG172) -> 7.95 | T172: EA | U172: =+Instructions!$B$3 -> N | W172: =+Instructions!$D$23 -> 0 | X172: 7.95 | Z172: YES | AA172: 7.95 | AB172: 0 | AC172: 7.95 | AD172: 0 | AF172: PR | AG172: 7.95 | AJ172: 7.95 | AK172: 0 | AL172: 0 | AO172: X
A173: PR | B173: Barwalt - All Other | D173: PRKN1STRAPS | G173: 20991 Replacement Straps for KN-1 | O173: Barwalt | S173: =IF(Suggested="Yes",'Price List'!AA173,'Price List'!AG173) -> 4.6 | T173: EA | U173: =+Instructions!$B$3 -> N | W173: =+Instructions!$D$23 -> 0 | X173: 4.6 | Z173: YES | AA173: 4.6 | AB173: 0 | AC173: 4.6 | AD173: 0 | AF173: PR | AG173: 4.6 | AJ173: 4.6 | AK173: 0 | AL173: 0 | AO173: X
A174: TR | B174: Troxell - All Other | D174: TX17209 | F174: 17-209 Super Soft Knee Pads - Regular | G174: Super Soft Knee Pads | O174: Troxell | Q174: Stock | S174: =IF(Suggested="Yes",'Price List'!AA174,'Price List'!AG174) -> 31.75 | T174: EA | U174: =+Instructions!$B$3 -> N | W174: =+Instructions!$D$23 -> 0 | X174: 31.75 | Z174: YES | AA174: 31.75 | AB174: 0 | AC174: 31.75 | AD174: 0 | AF174: TR | AG174: 31.75 | AJ174: 31.75 | AK174: 0 | AL174: 0 | AO174: X
A175: TR | B175: Troxell - All Other | D175: TX17209L | F175: 17-209L Super Soft Knee Pads - Large | O175: Troxell | Q175: Stock | S175: =IF(Suggested="Yes",'Price List'!AA175,'Price List'!AG175) -> 42.4 | T175: EA | U175: =+Instructions!$B$3 -> N | W175: =+Instructions!$D$23 -> 0 | X175: 42.4 | Z175: YES | AA175: 42.4 | AB175: 0 | AC175: 42.4 | AD175: 0 | AF175: TR | AG175: 42.4 | AJ175: 42.4 | AK175: 0 | AL175: 0 | AO175: X
AO176: X
C177: Wet Saws | AO177: X
AO178: X
D179: Saws - Cutting Length 48" and greater | AO179: X
A180: RU1 | B180: Rubi - Saws/Cutters | D180: RUDS2501500 | F180: DS250N 1500 Bridge Saw w/ Folding Legs - ZERO DUST | O180: Rubi | Q180: n/s | S180: =IF(Suggested="Yes",'Price List'!AA180,'Price List'!AG180) -> 2995 | T180: EA | U180: =+Instructions!$B$3 -> N | W180: =+Instructions!$D$23 -> 0 | X180: =ROUND($AA180*(1-W180)+0.004999,2) -> 2995 | Z180: YES | AA180: 2995 | AB180: =+W180 -> 0 | AC180: =+X180 -> 2995 | AD180: =(AG180-AC180)/AG180 -> 0 | AF180: =+A180 -> RU1 | AG180: =SUM(AJ180:AL180)+AE180 -> 2995 | AJ180: =ROUND(AC180/(1-VLOOKUP(AF180,Group,2,FALSE)),2) -> 2995 | AK180: =IF(VLOOKUP(AF180,Group,3,FALSE)="YES",VLOOKUP(ROUND(ROUND(AJ180,1)-AJ180,2),Round,2,FALSE)+VLOOKUP(AF180,Group,4,FALSE),0) -> 0 | AL180: =IF(VLOOKUP(AF180,Group,5,FALSE)="",0,ROUND(AJ180-0.04999,1)-AJ180+AM180) -> 0 | AM180: =IF(VLOOKUP(AF180,Group,5,FALSE)="","",VLOOKUP(AF180,Group,5,FALSE)) ->  | AO180: X
E181: - 61" cutting length / 42" diagonal | J181: - Dimensions: 87" x 29" x 51"
E182: - Weight = 242 lbs | J182: - Precise Mitre Cuts | AO182: X
E183: - 10" Saw Blade Capacity - 1" Arbor | J183: - Plunge Cuts | AO183: X
E184: - Horsepower = 3 hp | J184: - Folding Legs w/ Wheels for easy transportation | AO184: X
AO185: X
A186: RU1 | B186: Rubi - Saws/Cutters | D186: RUDS2501300 | F186: DS250N 1300 Bridge Saw w/ Folding Legs - ZERO DUST | O186: Rubi | Q186: n/s | S186: =IF(Suggested="Yes",'Price List'!AA186,'Price List'!AG186) -> 2855 | T186: EA | U186: =+Instructions!$B$3 -> N | W186: =+Instructions!$D$23 -> 0 | X186: =ROUND($AA186*(1-W186)+0.004999,2) -> 2855 | Z186: YES | AA186: 2855 | AB186: =+W186 -> 0 | AC186: =+X186 -> 2855 | AD186: =(AG186-AC186)/AG186 -> 0 | AF186: =+A186 -> RU1 | AG186: =SUM(AJ186:AL186)+AE186 -> 2855 | AJ186: =ROUND(AC186/(1-VLOOKUP(AF186,Group,2,FALSE)),2) -> 2855 | AK186: =IF(VLOOKUP(AF186,Group,3,FALSE)="YES",VLOOKUP(ROUND(ROUND(AJ186,1)-AJ186,2),Round,2,FALSE)+VLOOKUP(AF186,Group,4,FALSE),0) -> 0 | AL186: =IF(VLOOKUP(AF186,Group,5,FALSE)="",0,ROUND(AJ186-0.04999,1)-AJ186+AM186) -> 0 | AM186: =IF(VLOOKUP(AF186,Group,5,FALSE)="","",VLOOKUP(AF186,Group,5,FALSE)) ->  | AO186: X
E187: - 51" cutting length / 37" diag cut | J187: - Dimensions: 79" x 29" x 51"
E188: - Weight = 275 lbs | J188: - Precise Mitre Cuts | AO188: X
E189: - 10" Saw Blade Capacity - 1" Arbor | J189: - Plunge Cuts | AO189: X
E190: - Horsepower = 3 hp | J190: - Folding Legs w/ Wheels for easy transportation | AO190: X
AO191: X
A192: RU1 | B192: Rubi - Saws/Cutters | D192: RUDC250/1200 | F192: DC250 1200 Bridge Saw w/ Folding Legs | O192: Rubi | Q192: Stock | S192: =IF(Suggested="Yes",'Price List'!AA192,'Price List'!AG192) -> 1495 | T192: EA | U192: =+Instructions!$B$3 -> N | W192: =+Instructions!$D$23 -> 0 | X192: =ROUND($AA192*(1-W192)+0.004999,2) -> 1495 | Z192: YES | AA192: 1495 | AB192: =+W192 -> 0 | AC192: =+X192 -> 1495 | AD192: =(AG192-AC192)/AG192 -> 0 | AF192: =+A192 -> RU1 | AG192: =SUM(AJ192:AL192)+AE192 -> 1495 | AJ192: =ROUND(AC192/(1-VLOOKUP(AF192,Group,2,FALSE)),2) -> 1495 | AK192: =IF(VLOOKUP(AF192,Group,3,FALSE)="YES",VLOOKUP(ROUND(ROUND(AJ192,1)-AJ192,2),Round,2,FALSE)+VLOOKUP(AF192,Group,4,FALSE),0) -> 0 | AL192: =IF(VLOOKUP(AF192,Group,5,FALSE)="",0,ROUND(AJ192-0.04999,1)-AJ192+AM192) -> 0 | AM192: =IF(VLOOKUP(AF192,Group,5,FALSE)="","",VLOOKUP(AF192,Group,5,FALSE)) ->  | AO192: X
E193: - 48" cutting length / 33" diag cut | J193: - Dimensions: 67" x 31" x 51"
E194: - Weight = 132 lbs | J194: - Precise Mitre Cuts | AO194: X
E195: - 10" Saw Blade Capacity - 5/8" Arbor | J195: - Plunge Cuts | AO195: X
E196: - Horsepower = 1.5 hp | J196: - Folding Legs w/ Wheels for easy transportation | AO196: X
E197: - Removable Table for easy cleaning | AO197: X
AO198: X
D199: Saws - Cutting Length 36" to 48" | AO199: X
A200: RU1 | B200: Rubi - Saws/Cutters | D200: RUDC2500/850 | F200: DC250 850 Bridge Saw w/ Folding Legs | O200: Rubi | Q200: n/s | S200: =IF(Suggested="Yes",'Price List'!AA200,'Price List'!AG200) -> 1285 | T200: EA | U200: =+Instructions!$B$3 -> N | W200: =+Instructions!$D$23 -> 0 | X200: =ROUND($AA200*(1-W200)+0.004999,2) -> 1285 | Z200: YES | AA200: 1285 | AB200: =+W200 -> 0 | AC200: =+X200 -> 1285 | AD200: =(AG200-AC200)/AG200 -> 0 | AF200: =+A200 -> RU1 | AG200: =SUM(AJ200:AL200)+AE200 -> 1285 | AJ200: =ROUND(AC200/(1-VLOOKUP(AF200,Group,2,FALSE)),2) -> 1285 | AK200: =IF(VLOOKUP(AF200,Group,3,FALSE)="YES",VLOOKUP(ROUND(ROUND(AJ200,1)-AJ200,2),Round,2,FALSE)+VLOOKUP(AF200,Group,4,FALSE),0) -> 0 | AL200: =IF(VLOOKUP(AF200,Group,5,FALSE)="",0,ROUND(AJ200-0.04999,1)-AJ200+AM200) -> 0 | AM200: =IF(VLOOKUP(AF200,Group,5,FALSE)="","",VLOOKUP(AF200,Group,5,FALSE)) ->  | AO200: X
E201: - 38" cutting length / 27" diag cut | J201: - Dimensions: 58" x 31" x 51"
E202: - Weight = 121 lbs | J202: - Precise Mitre Cuts | AO202: X
E203: - 10" Saw Blade Capacity - 5/8" Arbor | J203: - Plunge Cuts | AO203: X
E204: - Horsepower = 1.5 hp | J204: - Folding Legs w/ Wheels for easy transportation | AO204: X
E205: - Removable Table for easy cleaning | AO205: X
... 222 more rows

Sheet Websites
A1: Easy Access Website links
A3: ConestogaTile's Website | B3: www.conestogatile.com
A5: Manufacturer's Home Page
A6: Barwalt | B6: www.barwalt.com
A7: European Tile Masters (ETMM) | B7: www.europeantilemasters
A8: IQ Saws | B8: https://iqpowertools.com/
A9: Mark E. Ind. | B9: www.markeindustries.com
A10: MK Diamond | B10: www.mkdiamond.com
A11: Progress Profiles | B11: www.progressprofiles.com
A12: Rubi Tools | B12: www.rubi.com
A13: Sigma (RTC) | B13: www.rtcproducts.com
A14: Troxell Tools | B14: https://troxellusa.com/
A16: Product | B16: Direct Website Link

Sheet Updates
B1: Price List
A2: Mfg | B2: Date | C2: Description
A4: New Products
A16: Discontinued Products
